Workbook

Sheet ОБЩИЙ
A1: ИТОГОВЫЙ протокол по итогам муниципального этапа РОШ по предмету "Родная (татарская) литература для учащихся-татар школ с русским языком обучения" в 2020-2021 учебном году
A2: № п/п | B2: Муниципалитет | C2: Полное наименование образовательного учреждения (по уставу) | D2: Фамилия | E2: Имя | F2: Отчество | G2: Класс | H2: Балл | I2: Апеляционный балл | J2: Итоговый балл | K2: Максимальный балл | L2: Статус | M2: Фамилия, имя, отчество педагога, подготовившего участника олимпиады | N2: Полное наименование образовательного учреждения (по уставу) | O2: Предмет
A3: 1 | B3: Приволжский район | C3: Муниципальное бюджетное общеобразовательное учреждение "Лицей №83 - Центр образования" | D3: Абдуллин | E3: С. | F3: Н. | G3: 7 | H3: 20.5 | J3: =I3+H3 -> 20.5 | K3: 35 | L3: Участник | M3: Галимова ГульшатНаилевна | N3: Муниципальное бюджетное общеобразовательное учреждение "Лицей №83 - Центр образования" | O3: Родная (татарская) литература для обучающихся – татар школ с русским языком обучения
A4: 2 | B4: Московский район | C4: Муниципальное бюджетное общеобразовательное учреждение "Средняя общеобразовательная татарско-русская школа № 34 " Московского района г.Казани" | D4: Адгамова | E4: К. | F4: Р. | G4: 8 | H4: 20 | J4: 20 | K4: 35 | L4: Участник | M4: Березкина ГульназТалгатовна | N4: Муниципальное бюджетное общеобразовательное учреждение "Средняя общеобразовательная татарско-русская школа № 34 " Московского района г.Казани" | O4: Родная (татарская) литература для обучающихся – татар школ с русским языком обучения
A5: 3 | B5: Советский район | C5: Муниципальное бюджетное общеобразовательное учреждение "Гимназия №175" Советского района г.Казани | D5: Алеева | E5: А. | F5: Н. | G5: 10 | H5: 49 | J5: =I5+H5 -> 49 | K5: 55 | L5: Призер | M5: Гафарова ГульнараГалимхановна | N5: Муниципальное бюджетное общеобразовательное учреждение "Гимназия №175" Советского района г.Казани | O5: Родная (татарская) литература для обучающихся – татар школ с русским языком обучения
A6: 4 | B6: Советский район | C6: Муниципальное бюджетное общеобразовательное учреждение "Гимназия №175" Советского района г.Казани | D6: Алеева | E6: А. | F6: М. | G6: 10 | H6: 44 | J6: =I6+H6 -> 44 | K6: 55 | L6: Призер | M6: Гафарова ГульнараГалимхановна | N6: Муниципальное бюджетное общеобразовательное учреждение "Гимназия №175" Советского района г.Казани | O6: Родная (татарская) литература для обучающихся – татар школ с русским языком обучения
A7: 5 | B7: Советский район | C7: Муниципальное бюджетное общеобразовательное учреждение "Гимназия №175" Советского района г.Казани | D7: Амерханова | E7: Т. | F7: И. | G7: 8 | H7: 29 | J7: 29 | K7: 35 | L7: Призер | M7: Галиуллина ДиляраАхмадулловна | N7: Муниципальное бюджетное общеобразовательное учреждение "Гимназия №175" Советского района г.Казани | O7: Родная (татарская) литература для обучающихся – татар школ с русским языком обучения
A8: 6 | B8: Советский район | C8: Муниципальное автономное общеобразовательное учреждение "Лицей №121 имени Героя Советского Союза С.А.Ахтямова" Советского района г.Казани | D8: Аппакова | E8: А. | F8: А. | G8: 10 | H8: 30 | J8: =I8+H8 -> 30 | K8: 55 | L8: Участник | M8: Валиуллина РамзияХашимовна | N8: Муниципальное автономное общеобразовательное учреждение "Лицей №121 имени Героя Советского Союза С.А.Ахтямова" Советского района г.Казани | O8: Родная (татарская) литература для обучающихся – татар школ с русским языком обучения
A9: 7 | B9: Вахитовский район | C9: Муниципальное бюджетное общеобразовательное учреждение "Средняя общеобразовательная русско-татарская школа №13" | D9: Асылгареев | E9: И. | F9: Т. | G9: 8 | H9: 6 | J9: 6 | K9: 35 | L9: Участник | M9: Губайдуллина ФиданияРифкатовна | N9: Муниципальное бюджетное общеобразовательное учреждение "Средняя общеобразовательная русско-татарская школа №13" | O9: Родная (татарская) литература для обучающихся – татар школ с русским языком обучения
A10: 9 | B10: Ново-Савиновский район | C10: Муниципальное бюджетное общеобразовательное учреждение "Гимназия №179 - центр образования" Ново-Савиновского района г.Казани" | D10: Ахметзянова | E10: Я. | F10: Э. | G10: 9 | H10: 37 | I10: 3 | J10: =I10+H10 -> 40 | K10: 40 | L10: Победитель | M10: Ахметзянова АльфияФаруховна | N10: Муниципальное бюджетное общеобразовательное учреждение "Гимназия №179 - центр образования" Ново-Савиновского района г.Казани" | O10: Родная (татарская) литература для обучающихся – татар школ с русским языком обучения
A11: 8 | B11: Приволжский район | C11: Муниципальное бюджетное общеобразовательное учреждение "Гимназия №6" | D11: Ахметзянова | E11: А. | F11: А. | G11: 10 | H11: 20 | J11: 20 | K11: 55 | L11: Участник | M11: Гусманова НалияХуснулловна | N11: Муниципальное бюджетное общеобразовательное учреждение "Гимназия №6" | O11: Родная (татарская) литература для обучающихся – татар школ с русским языком обучения
A12: 10 | B12: Советский район | C12: Муниципальное бюджетное общеобразовательное учреждение "Средняя общеобразовательная школа № 171 с углубленным изучением отдельных предметов" Советского района г.Казани | D12: Ахметова | E12: К. | F12: А. | G12: 9 | H12: 27 | J12: 27 | K12: 40 | L12: Участник | M12: Каримова ЗульфияИлдаровна | N12: Муниципальное бюджетное общеобразовательное учреждение "Средняя общеобразовательная школа № 171 с углубленным изучением отдельных предметов" Советского района г.Казани | O12: Родная (татарская) литература для обучающихся – татар школ с русским языком обучения
A13: 11 | B13: Приволжский район | C13: Муниципальное бюджетное общеобразовательное учреждение "Лицей №83 - Центр образования" | D13: Ахтарьянова | E13: И. | F13: Р. | G13: 10 | H13: 25 | J13: 25 | K13: 55 | L13: Участник | M13: Галиева АлсуИльгизовна | N13: Муниципальное бюджетное общеобразовательное учреждение "Лицей №83 - Центр образования" | O13: Родная (татарская) литература для обучающихся – татар школ с русским языком обучения
A14: 12 | B14: Ново-Савиновский район | C14: Муниципальное бюджетное общеобразовательное учреждение "Средняя общеобразовательная татарско-русская школа №113 с углубленным изучением отдельных предметов имени Героя России М.Р.Ахметшина" Ново-Савиновского района г. Казани" | D14: Багирова | E14: К. | F14: Р. К. | G14: 9 | H14: 38 | J14: 38 | K14: 40 | L14: Призер | M14: Гараева АлинаРашитовна | N14: Муниципальное бюджетное общеобразовательное учреждение "Средняя общеобразовательная татарско-русская школа №113 с углубленным изучением отдельных предметов имени Героя России М.Р.Ахметшина" Ново-Савиновского района г. Казани" | O14: Родная (татарская) литература для обучающихся – татар школ с русским языком обучения
A15: 13 | B15: Приволжский район | C15: Муниципальное бюджетное общеобразовательное учреждение "Гимназия №6" | D15: Бадрутдинова | E15: К. | F15: М. | G15: 11 | H15: 41 | J15: 41 | K15: 60 | L15: Участник | M15: Гусманова НалияХуснулловна | N15: Муниципальное бюджетное общеобразовательное учреждение "Гимназия №6" | O15: Родная (татарская) литература для обучающихся – татар школ с русским языком обучения
A16: 14 | B16: Ново-Савиновский район | C16: Муниципальное бюджетное общеобразовательное учреждение "Средняя общеобразовательная школа №170 с углубленным изучением отдельных предметов" Ново-Савиновского района г. Казани" | D16: Басирова | E16: Г. | F16: Р. | G16: 7 | H16: 23 | J16: 23 | K16: 35 | L16: Участник | M16: Гарипова ИльгизаРифкатовна | N16: Муниципальное бюджетное общеобразовательное учреждение "Средняя общеобразовательная школа №170 с углубленным изучением отдельных предметов" Ново-Савиновского района г. Казани" | O16: Родная (татарская) литература для обучающихся – татар школ с русским языком обучения
A17: 15 | B17: Советский район | C17: Муниципальное бюджетное общеобразовательное учреждение "Гимназия №175" Советского района г.Казани | D17: Батыршина | E17: Л. | F17: Р. | G17: 10 | H17: 50 | J17: 50 | K17: 55 | L17: Призер | M17: Гафарова ГульнараГалимхановна | N17: Муниципальное бюджетное общеобразовательное учреждение "Гимназия №175" Советского района г.Казани | O17: Родная (татарская) литература для обучающихся – татар школ с русским языком обучения
A18: 16 | B18: Приволжский район | C18: Муниципальное бюджетное общеобразовательное учреждение "Русско-татарская средняя общеобразовательная школа №129" | D18: Бикмуллин | E18: И. | F18: Д. | G18: 10 | H18: 24 | J18: 24 | K18: 55 | L18: Участник | M18: Зиганшина АльфияНурисламовна | N18: Муниципальное бюджетное общеобразовательное учреждение "Русско-татарская средняя общеобразовательная школа №129" | O18: Родная (татарская) литература для обучающихся – татар школ с русским языком обучения
A19: 17 | B19: Ново-Савиновский район | C19: Муниципальное бюджетное общеобразовательное учреждение "Средняя общеобразовательная школа №170 с углубленным изучением отдельных предметов" Ново-Савиновского района г. Казани" | D19: Бикмуллина | E19: З. | F19: Д. | G19: 9 | H19: 24 | J19: 24 | K19: 40 | L19: Участник | M19: Халитова ЛилияАзатовна | N19: Муниципальное бюджетное общеобразовательное учреждение "Средняя общеобразовательная школа №170 с углубленным изучением отдельных предметов" Ново-Савиновского района г. Казани" | O19: Родная (татарская) литература для обучающихся – татар школ с русским языком обучения
A20: 18 | B20: Вахитовский район | C20: Муниципальное бюджетное общеобразовательное учреждение "Средняя общеобразовательная русско-татарская школа №13" | D20: Билалова | E20: К. | F20: В. | G20: 11 | H20: 13 | J20: 13 | K20: 60 | L20: Участник | M20: Губайдуллина ФиданияРифкатовна | N20: Муниципальное бюджетное общеобразовательное учреждение "Средняя общеобразовательная русско-татарская школа №13" | O20: Родная (татарская) литература для обучающихся – татар школ с русским языком обучения
A21: 19 | B21: Кировский район | C21: Муниципальное бюджетное общеобразовательное учреждение "Русско-татарская средняя общеобразовательная школа №81 с углубленным изучением отдельных предметов имени В.А.Григорьева" | D21: Брехова | E21: Р. | F21: А. | G21: 9 | H21: 34 | J21: 34 | K21: 40 | L21: Участник | M21: Ахметзянова АльбинаЗуфаровна | N21: Муниципальное бюджетное общеобразовательное учреждение "Русско-татарская средняя общеобразовательная школа №81 с углубленным изучением отдельных предметов имени В.А.Григорьева" | O21: Родная (татарская) литература для обучающихся – татар школ с русским языком обучения
A22: 20 | B22: Советский район | C22: Муниципальное бюджетное общеобразовательное учреждение "Лицей № 159" Советского района г.Казани" | D22: Бульмакова | E22: К. | F22: Ф. | G22: 9 | H22: 38 | J22: 38 | K22: 40 | L22: Призер | M22: Шарифуллина СажидаЯкубовна | N22: Муниципальное бюджетное общеобразовательное учреждение "Лицей № 159" Советского района г.Казани" | O22: Родная (татарская) литература для обучающихся – татар школ с русским языком обучения
A23: 21 | B23: Ново-Савиновский район | C23: Муниципальное автономное общеобразовательное учреждение "Лицей №146 "Ресурс" Ново-Савиновского района г. Казани" | D23: Валеева | E23: А. | F23: А. | G23: 7 | H23: 20 | J23: 20 | K23: 35 | L23: Участник | M23: Гирфанова ЗилараРафаиловна | N23: Муниципальное автономное общеобразовательное учреждение "Лицей №146 "Ресурс" Ново-Савиновского района г. Казани" | O23: Родная (татарская) литература для обучающихся – татар школ с русским языком обучения
A24: 22 | B24: Советский район | C24: Муниципальное бюджетное общеобразовательное учреждение "Гимназия № 8 -Центр образования" Советского района г. Казани" | D24: Валиев | E24: Ф. | F24: Ф. | G24: 10 | H24: 8 | J24: 8 | K24: 55 | L24: Участник | M24: Мухаметшина ЧулпанФаатовна | N24: Муниципальное бюджетное общеобразовательное учреждение "Гимназия № 8 -Центр образования" Советского района г. Казани" | O24: Родная (татарская) литература для обучающихся – татар школ с русским языком обучения
A25: 23 | B25: Советский район | C25: Муниципальное бюджетное общеобразовательное учреждение "Средняя общеобразовательная школа № 47" Советского района г. Казани" | D25: Валиуллин | E25: Г. | F25: И. | G25: 8 | H25: 15 | J25: 15 | K25: 35 | L25: Участник | M25: Шангараева ГульчачакНургалиевна | N25: Муниципальное бюджетное общеобразовательное учреждение "Средняя общеобразовательная школа № 47" Советского района г. Казани" | O25: Родная (татарская) литература для обучающихся – татар школ с русским языком обучения
A26: 24 | B26: Советский район | C26: Муниципальное бюджетное общеобразовательное учреждение "Лицей № 159" Советского района г.Казани" | D26: Валиуллина | E26: С. | F26: А. | G26: 11 | H26: 37 | J26: =I26+H26 -> 37 | K26: 60 | L26: Участник | M26: Галимуллина ЛилияФаргатовна | N26: Муниципальное бюджетное общеобразовательное учреждение "Лицей № 159" Советского района г.Казани" | O26: Родная (татарская) литература для обучающихся – татар школ с русским языком обучения
A27: 25 | B27: Советский район | C27: Муниципальное бюджетное общеобразовательное учреждение «Средняя общеобразовательная школа с углубленным изучением отдельных предметов №184 им.М.И.Махмутова» | D27: Варламова | E27: К. | F27: Р. | G27: 7 | H27: 22.5 | J27: =I27+H27 -> 22.5 | K27: 35 | L27: Участник | M27: Ахметова ГульнараАхкамовна | N27: Муниципальное бюджетное общеобразовательное учреждение «Средняя общеобразовательная школа с углубленным изучением отдельных предметов №184 им.М.И.Махмутова» | O27: Родная (татарская) литература для обучающихся – татар школ с русским языком обучения
A28: 26 | B28: Советский район | C28: Муниципальное бюджетное общеобразовательное учреждение "Средняя общеобразовательная русско-татарская школа № 161" Советского района г.Казани" | D28: Габдрахманов | E28: И. | F28: И. | G28: 9 | H28: 38 | J28: =I28+H28 -> 38 | K28: 40 | L28: Призер | M28: Хабибуллина КлараАльбертовна | N28: Муниципальное бюджетное общеобразовательное учреждение "Средняя общеобразовательная русско-татарская школа № 161" Советского района г.Казани" | O28: Родная (татарская) литература для обучающихся – татар школ с русским языком обучения
A29: 27 | B29: Приволжский район | C29: Муниципальное бюджетное общеобразовательное учреждение "Гимназия №6" | D29: Газизов | E29: И. | F29: А. | G29: 8 | H29: 15 | J29: 15 | K29: 35 | L29: Участник | M29: Гильманова ЭльмираХайдаровна | N29: Муниципальное бюджетное общеобразовательное учреждение "Гимназия №6" | O29: Родная (татарская) литература для обучающихся – татар школ с русским языком обучения
A30: 28 | B30: Вахитовский район | C30: Муниципальное бюджетное общеобразовательное учреждение "Средняя общеобразовательная русско-татарская школа №13" | D30: Гайзуллина | E30: М. | F30: М. | G30: 7 | H30: 19.5 | J30: =I30+H30 -> 19.5 | K30: 35 | L30: Участник | M30: Губайдуллина ФиданияРифкатовна | N30: Муниципальное бюджетное общеобразовательное учреждение "Средняя общеобразовательная русско-татарская школа №13" | O30: Родная (татарская) литература для обучающихся – татар школ с русским языком обучения
A31: 29 | B31: Ново-Савиновский район | C31: Муниципальное бюджетное общеобразовательное учреждение "Средняя общеобразовательная школа №170 с углубленным изучением отдельных предметов" Ново-Савиновского района г. Казани" | D31: Галеева | E31: Д. | F31: Р. | G31: 10 | H31: 46 | I31: 6 | J31: =I31+H31 -> 52 | K31: 55 | L31: Победитель | M31: Гарипова ИльгизаРифкатовна | N31: Муниципальное бюджетное общеобразовательное учреждение "Средняя общеобразовательная школа №170 с углубленным изучением отдельных предметов" Ново-Савиновского района г. Казани" | O31: Родная (татарская) литература для обучающихся – татар школ с русским языком обучения
A32: 30 | B32: Советский район | C32: Муниципальное бюджетное общеобразовательное учреждение "Средняя общеобразовательная школа № 47" Советского района г. Казани" | D32: Галимова | E32: Ч. | F32: И. | G32: 8 | H32: 12 | J32: 12 | K32: 35 | L32: Участник | M32: Шангараева ГульчачакНургалиевна | N32: Муниципальное бюджетное общеобразовательное учреждение "Средняя общеобразовательная школа № 47" Советского района г. Казани" | O32: Родная (татарская) литература для обучающихся – татар школ с русским языком обучения
A33: 31 | B33: Вахитовский район | C33: Муниципальное бюджетное общеобразовательное учреждение "Средняя общеобразовательная русско-татарская школа №13" | D33: Ганеев | E33: Р. | F33: Р. | G33: 11 | H33: 9 | J33: =I33+H33 -> 9 | K33: 60 | L33: Участник | M33: Губайдуллина ФиданияРифкатовна | N33: Муниципальное бюджетное общеобразовательное учреждение "Средняя общеобразовательная русско-татарская школа №13" | O33: Родная (татарская) литература для обучающихся – татар школ с русским языком обучения
A34: 32 | B34: Приволжский район | C34: Муниципальное автономное общеобразовательное учреждение "Гимназия №19" | D34: Ганиев | E34: А. | F34: Р. | G34: 7 | H34: 9.5 | J34: =I34+H34 -> 9.5 | K34: 35 | L34: Участник | M34: Залялеева АлсуКотдусовна | N34: Муниципальное автономное общеобразовательное учреждение "Гимназия №19" | O34: Родная (татарская) литература для обучающихся – татар школ с русским языком обучения
A35: 33 | B35: Ново-Савиновский район | C35: Муниципальное бюджетное общеобразовательное учреждение "Средняя общеобразовательная школа №170 с углубленным изучением отдельных предметов" Ново-Савиновского района г. Казани" | D35: Гараева | E35: З. | F35: Ф. | G35: 9 | H35: 25 | J35: =I35+H35 -> 25 | K35: 40 | L35: Участник | M35: Халитова ЛилияАзатовна | N35: Муниципальное бюджетное общеобразовательное учреждение "Средняя общеобразовательная школа №170 с углубленным изучением отдельных предметов" Ново-Савиновского района г. Казани" | O35: Родная (татарская) литература для обучающихся – татар школ с русским языком обучения
A36: 36 | B36: Вахитовский район | C36: Муниципальное бюджетное общеобразовательное учреждение "Гимназия №28" | D36: Гарифуллина | E36: И. | F36: И. | G36: 8 | H36: 30 | J36: 30 | K36: 35 | L36: Призер | M36: Шарифуллина РадифаЗуфаровна | N36: Муниципальное бюджетное общеобразовательное учреждение "Гимназия №28" | O36: Родная (татарская) литература для обучающихся – татар школ с русским языком обучения
A37: 37 | B37: Авиастроительный район | C37: Муниципальное бюджетное общеобразовательное учреждение "Лицей №145" Авиастроительного района г.Казани" | D37: Гарифуллина | E37: К. | F37: Р. | G37: 8 | H37: 27 | J37: 27 | K37: 35 | L37: Призер | M37: Захарова МарияПавловна | N37: Муниципальное бюджетное общеобразовательное учреждение "Лицей №145" Авиастроительного района г.Казани" | O37: Родная (татарская) литература для обучающихся – татар школ с русским языком обучения
A38: 34 | B38: Советский район | C38: Муниципальное бюджетное общеобразовательное учреждение "Средняя общеобразовательная школа № 144 с углубленным изучением отдельных предметов" Советского района г.Казани" | D38: Гарифуллина | E38: А. | F38: И. | G38: 11 | H38: 25 | J38: =I38+H38 -> 25 | K38: 60 | L38: Участник | M38: Тухватуллина ЛилияРинатовна | N38: Муниципальное бюджетное общеобразовательное учреждение "Средняя общеобразовательная школа № 144 с углубленным изучением отдельных предметов" Советского района г.Казани" | O38: Родная (татарская) литература для обучающихся – татар школ с русским языком обучения
A39: 35 | B39: Ново-Савиновский район | C39: Государственное автономное общеобразовательное учреждение "Полилингвальный комплекс "Адымнар - путь к знаниям и согласию" г. Казани" | D39: Гарифуллина | E39: К. | F39: Р. | G39: 7 | H39: 19.5 | J39: =I39+H39 -> 19.5 | K39: 35 | L39: Участник | M39: Габдулина АльмираФердинантовна | N39: Государственное автономное общеобразовательное учреждение "Полилингвальный комплекс "Адымнар - путь к знаниям и согласию" г. Казани" | O39: Родная (татарская) литература для обучающихся – татар школ с русским языком обучения
A40: 39 | B40: Приволжский район | C40: Муниципальное бюджетное общеобразовательное учреждение "Русско-татарская средняя общеобразовательная школа №136" | D40: Гатауллина | E40: А. | F40: Ф. | G40: 8 | H40: 26 | J40: 26 | K40: 35 | L40: Призер | M40: Сайфутдинова ЧулпанХамзовна | N40: Муниципальное бюджетное общеобразовательное учреждение "Русско-татарская средняя общеобразовательная школа №136" | O40: Родная (татарская) литература для обучающихся – татар школ с русским языком обучения
A41: 38 | B41: Авиастроительный район | C41: Муниципальное бюджетное общеобразовательное учреждение "Гимназия №33" Авиастроительного района г.Казани" | D41: Гатауллина | E41: А. | F41: Р. | G41: 10 | H41: 10 | J41: =I41+H41 -> 10 | K41: 55 | L41: Участник | M41: Петрова ГузалияРузаловна | N41: Муниципальное бюджетное общеобразовательное учреждение "Гимназия №33" Авиастроительного района г.Казани" | O41: Родная (татарская) литература для обучающихся – татар школ с русским языком обучения
A42: 40 | B42: Авиастроительный район | C42: Муниципальное бюджетное общеобразовательное учреждение "Средняя общеобразовательная школа № 54 с углубленным изучением отдельных предметов" Авиастроительного района г.Казани" | D42: Гатина | E42: З. | F42: Р. | G42: 8 | H42: 23 | J42: 23 | K42: 35 | L42: Участник | M42: Аскарова РаисаРаисовна | N42: Муниципальное бюджетное общеобразовательное учреждение "Средняя общеобразовательная школа № 54 с углубленным изучением отдельных предметов" Авиастроительного района г.Казани" | O42: Родная (татарская) литература для обучающихся – татар школ с русским языком обучения
A43: 41 | B43: Приволжский район | C43: Муниципальное бюджетное общеобразовательное учреждение "Гимназия №6" | D43: Гаффаров | E43: М. | F43: М. | G43: 10 | H43: 9 | J43: =I43+H43 -> 9 | K43: 55 | L43: Участник | M43: Гусманова НалияХуснулловна | N43: Муниципальное бюджетное общеобразовательное учреждение "Гимназия №6" | O43: Родная (татарская) литература для обучающихся – татар школ с русским языком обучения
A44: 43 | B44: Советский район | C44: Муниципальное бюджетное общеобразовательное учреждение "Гимназия № 90" Советского района г.Казани" | D44: Гильманова | E44: М. | F44: М. | G44: 8 | H44: 26 | J44: 26 | K44: 35 | L44: Призер | M44: Салахова ИлюсаАдиповна | N44: Муниципальное бюджетное общеобразовательное учреждение "Гимназия № 90" Советского района г.Казани" | O44: Родная (татарская) литература для обучающихся – татар школ с русским языком обучения
A45: 42 | B45: Советский район | C45: Муниципальное бюджетное общеобразовательное учреждение "Гимназия № 20 имени Абдуллы Алиша" Советского района города Казани" | D45: Гильманова | E45: Д. | F45: Р. | G45: 10 | H45: 25 | J45: =I45+H45 -> 25 | K45: 55 | L45: Участник | M45: Фахрутдинова ГульшатМухаметовна | N45: Муниципальное бюджетное общеобразовательное учреждение "Гимназия № 20 имени Абдуллы Алиша" Советского района города Казани" | O45: Родная (татарская) литература для обучающихся – татар школ с русским языком обучения
A46: 44 | B46: Кировский район | C46: МБОУ "Политехнический лицей № 182" | D46: Гильмутдинов | E46: А. | F46: Ф. | G46: 8 | H46: 26 | J46: 26 | K46: 35 | L46: Призер | M46: Мингалиева ГульназРавильевна | N46: МБОУ "Политехнический лицей № 182" | O46: Родная (татарская) литература для обучающихся – татар школ с русским языком обучения
A47: 45 | B47: Советский район | C47: Муниципальное бюджетное общеобразовательное учреждение "Лицей № 159" Советского района г.Казани" | D47: Гильмутдинова | E47: А. | F47: И. | G47: 9 | H47: 34 | J47: =I47+H47 -> 34 | K47: 40 | L47: Участник | M47: Исмагилова ГульнурНаиловна | N47: Муниципальное бюджетное общеобразовательное учреждение "Лицей № 159" Советского района г.Казани" | O47: Родная (татарская) литература для обучающихся – татар школ с русским языком обучения
A48: 46 | B48: Авиастроительный район | C48: Муниципальное бюджетное общеобразовательное учреждение "Гимназия №33" Авиастроительного района г.Казани" | D48: Гиниатуллин | E48: Р. | F48: Р. | G48: 8 | H48: 25 | J48: 25 | K48: 35 | L48: Участник | M48: Мусаяпова НасимаХайбулловна | N48: Муниципальное бюджетное общеобразовательное учреждение "Гимназия №33" Авиастроительного района г.Казани" | O48: Родная (татарская) литература для обучающихся – татар школ с русским языком обучения
A49: 47 | B49: Советский район | C49: Муниципальное автономное общеобразовательное учреждение "Лицей №121 имени Героя Советского Союза С.А.Ахтямова" Советского района г.Казани | D49: Гисматуллина | E49: Д. | F49: Р. | G49: 11 | H49: 53 | J49: =I49+H49 -> 53 | K49: 60 | L49: Победитель | M49: Валиуллина РамзияХашимовна | N49: Муниципальное автономное общеобразовательное учреждение "Лицей №121 имени Героя Советского Союза С.А.Ахтямова" Советского района г.Казани | O49: Родная (татарская) литература для обучающихся – татар школ с русским языком обучения
A50: 48 | B50: Приволжский район | C50: Муниципальное бюджетное общеобразовательное учреждение "Гимназия №6" | D50: Губайдуллина | E50: Р. | F50: И. | G50: 8 | H50: 16 | J50: 16 | K50: 35 | L50: Участник | M50: Гильманова ЭльмираХайдаровна | N50: Муниципальное бюджетное общеобразовательное учреждение "Гимназия №6" | O50: Родная (татарская) литература для обучающихся – татар школ с русским языком обучения
A51: 49 | B51: Ново-Савиновский район | C51: Государственное автономное общеобразовательное учреждение "Полилингвальный комплекс "Адымнар - путь к знаниям и согласию" г. Казани" | D51: Давлетшин | E51: И. | F51: И. | G51: 7 | H51: 13 | J51: =I51+H51 -> 13 | K51: 35 | L51: Участник | M51: Гараева ЛилияИдрисовна | N51: Государственное автономное общеобразовательное учреждение "Полилингвальный комплекс "Адымнар - путь к знаниям и согласию" г. Казани" | O51: Родная (татарская) литература для обучающихся – татар школ с русским языком обучения
A52: 50 | B52: Приволжский район | C52: Муниципальное бюджетное общеобразовательное учреждение "Гимназия №6" | D52: Давлетшина | E52: А. | F52: Р. | G52: 8 | H52: 17 | J52: 17 | K52: 35 | L52: Участник | M52: Низамиева ЛилияНазимовна | N52: Муниципальное бюджетное общеобразовательное учреждение "Гимназия №6" | O52: Родная (татарская) литература для обучающихся – татар школ с русским языком обучения
A53: 51 | B53: Кировский район | C53: Муниципальное бюджетное общеобразовательное учреждение "Средняя общеобразовательная школа №70 с углубленным изучениемотдельных предметов" Кировского района г. Казани" | D53: Джабиева | E53: Ж. | F53: Н. | G53: 8 | H53: 19 | J53: 19 | K53: 35 | L53: Участник | M53: Валиева ГузельРазяповна | N53: Муниципальное бюджетное общеобразовательное учреждение "Средняя общеобразовательная школа №70 с углубленным изучениемотдельных предметов" Кировского района г. Казани" | O53: Родная (татарская) литература для обучающихся – татар школ с русским языком обучения
A54: 52 | B54: Советский район | C54: Муниципальное бюджетное общеобразовательное учреждение "Лицей № 159" Советского района г.Казани" | D54: Зайнуллина | E54: А. | F54: М. | G54: 8 | H54: 18 | J54: 18 | K54: 35 | L54: Участник | M54: Галимуллина ЛилияФаргатовна | N54: Муниципальное бюджетное общеобразовательное учреждение "Лицей № 159" Советского района г.Казани" | O54: Родная (татарская) литература для обучающихся – татар школ с русским языком обучения
A55: 54 | B55: Советский район | C55: Муниципальное бюджетное общеобразовательное учреждение "Средняя общеобразовательная школа № 171 с углубленным изучением отдельных предметов" Советского района г.Казани | D55: Закиров | E55: М. | F55: А. | G55: 7 | H55: 23.5 | J55: =I55+H55 -> 23.5 | K55: 35 | L55: Призер | M55: Гумарова ГалинаАлександровна | N55: Муниципальное бюджетное общеобразовательное учреждение "Средняя общеобразовательная школа № 171 с углубленным изучением отдельных предметов" Советского района г.Казани | O55: Родная (татарская) литература для обучающихся – татар школ с русским языком обучения
A56: 53 | B56: Авиастроительный район | C56: Муниципальное бюджетное общеобразовательное учреждение "Гимназия №14" Авиастроительного района г.Казани" | D56: Закиров | E56: И. | F56: Р. | G56: 11 | H56: 41 | J56: 41 | K56: 60 | L56: Участник | M56: Шайхутдинова ЗульфияАдгамовна | N56: Муниципальное бюджетное общеобразовательное учреждение "Гимназия №14" Авиастроительного района г.Казани" | O56: Родная (татарская) литература для обучающихся – татар школ с русским языком обучения
A57: 55 | B57: Советский район | C57: Муниципальное автономное общеобразовательное учреждение "Лицей №121 имени Героя Советского Союза С.А.Ахтямова" Советского района г.Казани | D57: Закиров | E57: А. | F57: А. | G57: 9 | H57: 32 | J57: 32 | K57: 40 | L57: Участник | M57: Валиуллина РамзияХашимовна | N57: Муниципальное автономное общеобразовательное учреждение "Лицей №121 имени Героя Советского Союза С.А.Ахтямова" Советского района г.Казани | O57: Родная (татарская) литература для обучающихся – татар школ с русским языком обучения
A58: 58 | B58: Советский район | C58: Муниципальное бюджетное общеобразовательное учреждение "Средняя общеобразовательная школа № 171 с углубленным изучением отдельных предметов" Советского района г.Казани | D58: Закирова | E58: З. | F58: Р. | G58: 11 | H58: 50 | J58: 50 | K58: 60 | L58: Призер | M58: Каримова ЗульфияИлдаровна | N58: Муниципальное бюджетное общеобразовательное учреждение "Средняя общеобразовательная школа № 171 с углубленным изучением отдельных предметов" Советского района г.Казани | O58: Родная (татарская) литература для обучающихся – татар школ с русским языком обучения
A59: 59 | B59: Советский район | C59: Муниципальное бюджетное общеобразовательное учреждение «Средняя общеобразовательная школа с углубленным изучением отдельных предметов №184 им.М.И.Махмутова» | D59: Закирова | E59: А. | F59: А. | G59: 7 | H59: 24 | J59: 24 | K59: 35 | L59: Призер | M59: Ахметова ГульнараАхкамовна | N59: Муниципальное бюджетное общеобразовательное учреждение «Средняя общеобразовательная школа с углубленным изучением отдельных предметов №184 им.М.И.Махмутова» | O59: Родная (татарская) литература для обучающихся – татар школ с русским языком обучения
A60: 61 | B60: Авиастроительный район | C60: Муниципальное бюджетное общеобразовательное учреждение "Лицей №26 им. М.Джалиля" Авиастроительного района г.Казани" | D60: Закирова | E60: Н. | F60: Р. | G60: 9 | H60: 37 | J60: 37 | K60: 40 | L60: Призер | M60: Камалеева ЗолфияМиннуровна | N60: Муниципальное бюджетное общеобразовательное учреждение "Лицей №26 им. М.Джалиля" Авиастроительного района г.Казани" | O60: Родная (татарская) литература для обучающихся – татар школ с русским языком обучения
A61: 56 | B61: Приволжский район | C61: Муниципальное бюджетное общеобразовательное учреждение "Лицей №35 - образовательный центр "Галактика" Приволжского района города Казани" | D61: Закирова | E61: И. | F61: Х. | G61: 10 | H61: 37 | J61: 37 | K61: 55 | L61: Участник | M61: Гилязова ГульнараФаиловна | N61: Муниципальное бюджетное общеобразовательное учреждение "Лицей №35 - образовательный центр "Галактика" Приволжского района города Казани" | O61: Родная (татарская) литература для обучающихся – татар школ с русским языком обучения
A62: 60 | B62: Авиастроительный район | C62: Муниципальное бюджетное общеобразовательное учреждение "Лицей №26 им. М.Джалиля" Авиастроительного района г.Казани" | D62: Закирова | E62: Л. | F62: Р. | G62: 8 | H62: 25 | J62: 25 | K62: 35 | L62: Участник | M62: Камалеева ЗолфияМиннуровна | N62: Муниципальное бюджетное общеобразовательное учреждение "Лицей №26 им. М.Джалиля" Авиастроительного района г.Казани" | O62: Родная (татарская) литература для обучающихся – татар школ с русским языком обучения
A63: 57 | B63: Советский район | C63: Муниципальное бюджетное общеобразовательное учреждение "Средняя общеобразовательная школа № 144 с углубленным изучением отдельных предметов" Советского района г.Казани" | D63: Закирова | E63: А. | F63: Р. | G63: 10 | H63: 19 | J63: =I63+H63 -> 19 | K63: 55 | L63: Участник | M63: Муслимова РамзияВакиповна | N63: Муниципальное бюджетное общеобразовательное учреждение "Средняя общеобразовательная школа № 144 с углубленным изучением отдельных предметов" Советского района г.Казани" | O63: Родная (татарская) литература для обучающихся – татар школ с русским языком обучения
A64: 62 | B64: Советский район | C64: Муниципальное бюджетное общеобразовательное учреждение "Средняя общеобразовательная школа № 47" Советского района г. Казани" | D64: Закирова | E64: А. | F64: Р. | G64: 9 | H64: 23 | J64: =I64+H64 -> 23 | K64: 40 | L64: Участник | M64: Шангараева ГульчачакНургалиевна | N64: Муниципальное бюджетное общеобразовательное учреждение "Средняя общеобразовательная школа № 47" Советского района г. Казани" | O64: Родная (татарская) литература для обучающихся – татар школ с русским языком обучения
A65: 63 | B65: Московский район | C65: Муниципальное бюджетное общеобразовательное учреждение "Гимназия № 9" Московского района г. Казани" | D65: Залялиева | E65: Э. | F65: Р. | G65: 10 | H65: 39 | J65: =I65+H65 -> 39 | K65: 55 | L65: Участник | M65: Губайдуллина ЗульфияРавиловна | N65: Муниципальное бюджетное общеобразовательное учреждение "Гимназия № 9" Московского района г. Казани" | O65: Родная (татарская) литература для обучающихся – татар школ с русским языком обучения
A66: 64 | B66: Советский район | C66: Муниципальное бюджетное общеобразовательное учреждение "Гимназия №175" Советского района г.Казани | D66: Залялов | E66: А. | F66: А. | G66: 9 | H66: 37 | J66: =I66+H66 -> 37 | K66: 40 | L66: Призер | M66: Зарипова АлинаАнисовна | N66: Муниципальное бюджетное общеобразовательное учреждение "Гимназия №175" Советского района г.Казани | O66: Родная (татарская) литература для обучающихся – татар школ с русским языком обучения
A67: 65 | B67: Приволжский район | C67: Муниципальное бюджетное общеобразовательное учреждение "Гимназия №6" | D67: Зантемирова | E67: А. | F67: И. | G67: 8 | H67: 22 | J67: 22 | K67: 35 | L67: Участник | M67: Гайнутдинова АлинаРустамовна | N67: Муниципальное бюджетное общеобразовательное учреждение "Гимназия №6" | O67: Родная (татарская) литература для обучающихся – татар школ с русским языком обучения
A68: 67 | B68: Ново-Савиновский район | C68: Муниципальное бюджетное общеобразовательное учреждение "Средняя общеобразовательная школа №170 с углубленным изучением отдельных предметов" Ново-Савиновского района г. Казани" | D68: Зарипова | E68: Л. | F68: Р. | G68: 8 | H68: 32 | J68: 32 | K68: 35 | L68: Победитель | M68: Гарипова ИльгизаРифкатовна | N68: Муниципальное бюджетное общеобразовательное учреждение "Средняя общеобразовательная школа №170 с углубленным изучением отдельных предметов" Ново-Савиновского района г. Казани" | O68: Родная (татарская) литература для обучающихся – татар школ с русским языком обучения
A69: 68 | B69: Советский район | C69: Муниципальное бюджетное общеобразовательное учреждение "Гимназия №175" Советского района г.Казани | D69: Зарипова | E69: Р. | F69: Р. | G69: 9 | H69: 37 | J69: =I69+H69 -> 37 | K69: 40 | L69: Призер | M69: Зарипова АлинаАнисовна | N69: Муниципальное бюджетное общеобразовательное учреждение "Гимназия №175" Советского района г.Казани | O69: Родная (татарская) литература для обучающихся – татар школ с русским языком обучения
A70: 66 | B70: Советский район | C70: Муниципальное бюджетное общеобразовательное учреждение "Средняя общеобразовательная школа № 171 с углубленным изучением отдельных предметов" Советского района г.Казани | D70: Зарипова | E70: А. | F70: А. | G70: 7 | H70: 20 | J70: 20 | K70: 35 | L70: Участник | M70: Гумарова ГалинаАлександровна | N70: Муниципальное бюджетное общеобразовательное учреждение "Средняя общеобразовательная школа № 171 с углубленным изучением отдельных предметов" Советского района г.Казани | O70: Родная (татарская) литература для обучающихся – татар школ с русским языком обучения
A71: 69 | B71: Приволжский район | C71: Муниципальное бюджетное общеобразовательное учреждение "Татарско-русская средняя общеобразовательная школа №10 с углубленным изучением отдельных предметов" | D71: Зиннатов | E71: И. | F71: И. | G71: 9 | H71: 28 | J71: 28 | K71: 40 | L71: Участник | M71: Хайрутдинова АлсуНаиловна | N71: Муниципальное бюджетное общеобразовательное учреждение "Татарско-русская средняя общеобразовательная школа №10 с углубленным изучением отдельных предметов" | O71: Родная (татарская) литература для обучающихся – татар школ с русским языком обучения
A72: 70 | B72: Кировский район | C72: Муниципальное автономное общеобразовательное учреждение "Гимназия - интернат №4" Кировского района г.Казани | D72: Зябирова | E72: А. | F72: Р. | G72: 9 | H72: 23 | J72: 23 | K72: 40 | L72: Участник | M72: Садыкова РамзияГабидулловна | N72: Муниципальное автономное общеобразовательное учреждение "Гимназия - интернат №4" Кировского района г.Казани | O72: Родная (татарская) литература для обучающихся – татар школ с русским языком обучения
A73: 71 | B73: Советский район | C73: Муниципальное автономное общеобразовательное учреждение "Лицей №121 имени Героя Советского Союза С.А.Ахтямова" Советского района г.Казани | D73: Ибатуллина | E73: З. | F73: Ф. | G73: 9 | H73: 32 | J73: 32 | K73: 40 | L73: Участник | M73: Валиуллина РамзияХашимовна | N73: Муниципальное автономное общеобразовательное учреждение "Лицей №121 имени Героя Советского Союза С.А.Ахтямова" Советского района г.Казани | O73: Родная (татарская) литература для обучающихся – татар школ с русским языком обучения
A74: 72 | B74: Ново-Савиновский район | C74: Государственное автономное общеобразовательное учреждение "Полилингвальный комплекс "Адымнар - путь к знаниям и согласию" г. Казани" | D74: Ибнеева | E74: Д. | F74: М. | G74: 7 | H74: 26.5 | J74: 26.5 | K74: 35 | L74: Призер | M74: Габдулина АльмираФердинантовна | N74: Государственное автономное общеобразовательное учреждение "Полилингвальный комплекс "Адымнар - путь к знаниям и согласию" г. Казани" | O74: Родная (татарская) литература для обучающихся – татар школ с русским языком обучения
A75: 74 | B75: Авиастроительный район | C75: Муниципальное бюджетное общеобразовательное учреждение "Средняя общеобразовательная школа с углубленным изучением отдельных предметов №62" Авиастроительного района г.Казани" | D75: Ибрагимова | E75: А. | F75: А. | G75: 7 | H75: 35 | J75: 35 | K75: 35 | L75: Победитель | M75: Ибрагимова ЭнджеСалимовна | N75: Муниципальное бюджетное общеобразовательное учреждение "Средняя общеобразовательная школа с углубленным изучением отдельных предметов №62" Авиастроительного района г.Казани" | O75: Родная (татарская) литература для обучающихся – татар школ с русским языком обучения
A76: 73 | B76: Приволжский район | C76: Муниципальное бюджетное общеобразовательное учреждение "Лицей №83 - Центр образования" | D76: Ибрагимова | E76: Р. | F76: Р. | G76: 10 | H76: 40 | J76: 40 | K76: 55 | L76: Участник | M76: Сафина Гульназ Васильевна | N76: МБОУ"Лицей№83-ЦО" | O76: Родная (татарская) литература для обучающихся – татар школ с русским языком обучения
A77: 75 | B77: Кировский район | C77: Муниципальное автономное общеобразовательное учреждение "Гимназия - интернат №4" Кировского района г.Казани | D77: Ильясова | E77: Г. | F77: А. | G77: 7 | H77: 14 | J77: 14 | K77: 35 | L77: Участник | M77: Садыкова РамзияГабидулловна | N77: Муниципальное автономное общеобразовательное учреждение "Гимназия - интернат №4" Кировского района г.Казани | O77: Родная (татарская) литература для обучающихся – татар школ с русским языком обучения
A78: 76 | B78: Приволжский район | C78: Муниципальное бюджетное общеобразовательное учреждение "Лицей №83 - Центр образования" | D78: Исмагилов | E78: И. | F78: Ш. | G78: 7 | H78: 23 | J78: 23 | K78: 35 | L78: Участник | M78: Галиева АлсуИльгизовна | N78: Муниципальное бюджетное общеобразовательное учреждение "Лицей №83 - Центр образования" | O78: Родная (татарская) литература для обучающихся – татар школ с русским языком обучения
A79: 77 | B79: Советский район | C79: Муниципальное бюджетное общеобразовательное учреждение "Лицей № 159" Советского района г.Казани" | D79: Исмагилова | E79: А. | F79: А. | G79: 8 | H79: 22 | J79: 22 | K79: 35 | L79: Участник | M79: Галимуллина ЛилияФаргатовна | N79: Муниципальное бюджетное общеобразовательное учреждение "Лицей № 159" Советского района г.Казани" | O79: Родная (татарская) литература для обучающихся – татар школ с русским языком обучения
A80: 78 | B80: Советский район | C80: Муниципальное бюджетное общеобразовательное учреждение «Средняя общеобразовательная школа с углубленным изучением отдельных предметов №184 им.М.И.Махмутова» | D80: Исхакова | E80: З. | F80: И. | G80: 8 | H80: 18 | J80: 18 | K80: 35 | L80: Участник | M80: Хафизова ИльхамияМуллануровна | N80: Муниципальное бюджетное общеобразовательное учреждение «Средняя общеобразовательная школа с углубленным изучением отдельных предметов №184 им.М.И.Махмутова» | O80: Родная (татарская) литература для обучающихся – татар школ с русским языком обучения
A81: 79 | B81: Кировский район | C81: Муниципальное автономное общеобразовательное учреждение "Гимназия - интернат №4" Кировского района г.Казани | D81: Ихсанова | E81: А. | F81: А. | G81: 9 | H81: 25 | J81: =I81+H81 -> 25 | K81: 40 | L81: Участник | M81: Садыкова РамзияГабидулловна | N81: Муниципальное автономное общеобразовательное учреждение "Гимназия - интернат №4" Кировского района г.Казани | O81: Родная (татарская) литература для обучающихся – татар школ с русским языком обучения
A82: 80 | B82: Советский район | C82: Муниципальное бюджетное общеобразовательное учреждение "Гимназия № 90" Советского района г.Казани" | D82: Камалеева | E82: З. | F82: С. | G82: 11 | H82: 46 | J82: =I82+H82 -> 46 | K82: 60 | L82: Участник | M82: Габдулхакова ГульчачакРашитовна | N82: Муниципальное бюджетное общеобразовательное учреждение "Гимназия № 90" Советского района г.Казани" | O82: Родная (татарская) литература для обучающихся – татар школ с русским языком обучения
A83: 81 | B83: Советский район | C83: Муниципальное автономное общеобразовательное учреждение "Лицей №121 имени Героя Советского Союза С.А.Ахтямова" Советского района г.Казани | D83: Камалиев | E83: К. | F83: И. | G83: 10 | H83: 37 | J83: =I83+H83 -> 37 | K83: 55 | L83: Участник | M83: Валиуллина РамзияХашимовна | N83: Муниципальное автономное общеобразовательное учреждение "Лицей №121 имени Героя Советского Союза С.А.Ахтямова" Советского района г.Казани | O83: Родная (татарская) литература для обучающихся – татар школ с русским языком обучения
A84: 82 | B84: Советский район | C84: Муниципальное бюджетное общеобразовательное учреждение "Средняя общеобразовательная школа № 47" Советского района г. Казани" | D84: Каримова | E84: Н. | F84: И. | G84: 9 | H84: 19.5 | J84: =I84+H84 -> 19.5 | K84: 40 | L84: Участник | M84: Шангараева ГульчачакНургалиевна | N84: Муниципальное бюджетное общеобразовательное учреждение "Средняя общеобразовательная школа № 47" Советского района г. Казани" | O84: Родная (татарская) литература для обучающихся – татар школ с русским языком обучения
A85: 83 | B85: Авиастроительный район | C85: Муниципальное бюджетное общеобразовательное учреждение "Лицей №26 им. М.Джалиля" Авиастроительного района г.Казани" | D85: Каюмова | E85: А. | F85: Р. | G85: 8 | H85: 26 | J85: 26 | K85: 35 | L85: Призер | M85: Камалеева ЗолфияМиннуровна | N85: Муниципальное бюджетное общеобразовательное учреждение "Лицей №26 им. М.Джалиля" Авиастроительного района г.Казани" | O85: Родная (татарская) литература для обучающихся – татар школ с русским языком обучения
A86: 84 | B86: Авиастроительный район | C86: Муниципальное бюджетное общеобразовательное учреждение "Гимназия №33" Авиастроительного района г.Казани" | D86: Киямов | E86: И. | F86: И. | G86: 9 | H86: 34 | J86: =I86+H86 -> 34 | K86: 40 | L86: Участник | M86: Петрова ГузалияРузаловна | N86: Муниципальное бюджетное общеобразовательное учреждение "Гимназия №33" Авиастроительного района г.Казани" | O86: Родная (татарская) литература для обучающихся – татар школ с русским языком обучения
A87: 85 | B87: Ново-Савиновский район | C87: Муниципальное бюджетное общеобразовательное учреждение "Средняя общеобразовательная школа №170 с углубленным изучением отдельных предметов" Ново-Савиновского района г. Казани" | D87: Кулеева | E87: Э. | F87: Р. | G87: 8 | H87: 24 | J87: 24 | K87: 35 | L87: Участник | M87: Гарипова ИльгизаРифкатовна | N87: Муниципальное бюджетное общеобразовательное учреждение "Средняя общеобразовательная школа №170 с углубленным изучением отдельных предметов" Ново-Савиновского района г. Казани" | O87: Родная (татарская) литература для обучающихся – татар школ с русским языком обучения
A88: 87 | B88: Приволжский район | C88: Муниципальное бюджетное общеобразовательное учреждение "Лицей №78 "Фарватер" | D88: Латыпова | E88: А. | F88: Р. | G88: 8 | H88: 23 | J88: 23 | K88: 35 | L88: Участник | M88: Вакилова ЗиляЮнусовна | N88: Муниципальное бюджетное общеобразовательное учреждение "Лицей №78 "Фарватер" | O88: Родная (татарская) литература для обучающихся – татар школ с русским языком обучения
A89: 86 | B89: Приволжский район | C89: Муниципальное бюджетное общеобразовательное учреждение "Гимназия №6" | D89: Латыпова | E89: М. | F89: И. | G89: 7 | H89: 4.5 | J89: =I89+H89 -> 4.5 | K89: 35 | L89: Участник | M89: Гильманова ЭльмираХайдаровна | N89: Муниципальное бюджетное общеобразовательное учреждение "Гимназия №6" | O89: Родная (татарская) литература для обучающихся – татар школ с русским языком обучения
A90: 88 | B90: Советский район | C90: Муниципальное бюджетное общеобразовательное учреждение "Гимназия №175" Советского района г.Казани | D90: Лотфуллина | E90: И. | F90: И. | G90: 9 | H90: 32 | J90: =I90+H90 -> 32 | K90: 40 | L90: Участник | M90: Зарипова АлинаАнисовна | N90: Муниципальное бюджетное общеобразовательное учреждение "Гимназия №175" Советского района г.Казани | O90: Родная (татарская) литература для обучающихся – татар школ с русским языком обучения
A91: 89 | B91: Ново-Савиновский район | C91: Муниципальное бюджетное общеобразовательное учреждение "Гимназия №7 имени Героя России А.В.Козина" Ново-Савиновского района г. Казани" | D91: Мансуров | E91: М. | F91: Э. | G91: 11 | H91: 47 | J91: =I91+H91 -> 47 | K91: 60 | L91: Участник | M91: Набиуллина ТаслимаГиниятовна | N91: Муниципальное бюджетное общеобразовательное учреждение "Гимназия №7 имени Героя России А.В.Козина" Ново-Савиновского района г. Казани" | O91: Родная (татарская) литература для обучающихся – татар школ с русским языком обучения
A92: 90 | B92: Ново-Савиновский район | C92: Государственное автономное общеобразовательное учреждение "Полилингвальный комплекс "Адымнар - путь к знаниям и согласию" г. Казани" | D92: Мансуров | E92: Ш. | F92: А. | G92: 8 | H92: 21 | J92: 21 | K92: 35 | L92: Участник | M92: Ханнанов РамильГумарович | N92: Государственное автономное общеобразовательное учреждение "Полилингвальный комплекс "Адымнар - путь к знаниям и согласию" г. Казани" | O92: Родная (татарская) литература для обучающихся – татар школ с русским языком обучения
A93: 91 | B93: Приволжский район | C93: Муниципальное автономное общеобразовательное учреждение "Гимназия №19" | D93: Манюрова | E93: А. | F93: И. | G93: 8 | H93: 22 | J93: 22 | K93: 35 | L93: Участник | M93: Гизатуллина ЛинизаМинехурматулловна | N93: Муниципальное автономное общеобразовательное учреждение "Гимназия №19" | O93: Родная (татарская) литература для обучающихся – татар школ с русским языком обучения
A94: 92 | B94: Приволжский район | C94: Муниципальное бюджетное общеобразовательное учреждение "Лицей №78 "Фарватер" | D94: Марданова | E94: Г. | F94: Д. | G94: 8 | H94: 28 | J94: 28 | K94: 35 | L94: Призер | M94: Инсафутдинова МиляушаТальгатовна | N94: Муниципальное бюджетное общеобразовательное учреждение "Лицей №78 "Фарватер" | O94: Родная (татарская) литература для обучающихся – татар школ с русским языком обучения
A95: 93 | B95: Советский район | C95: Муниципальное бюджетное общеобразовательное учреждение "Средняя общеобразовательная школа № 169" Советского района г.Казани" | D95: Медова | E95: К. | F95: В. | G95: 11 | H95: 49 | J95: =I95+H95 -> 49 | K95: 60 | L95: Призер | M95: Саликиева ВалентинаМихайловна | N95: Муниципальное бюджетное общеобразовательное учреждение "Средняя общеобразовательная школа № 169" Советского района г.Казани" | O95: Родная (татарская) литература для обучающихся – татар школ с русским языком обучения
A96: 94 | B96: Ново-Савиновский район | C96: Муниципальное бюджетное общеобразовательное учреждение "Гимназия №179 - центр образования" Ново-Савиновского района г.Казани" | D96: Мингазов | E96: А. | F96: А. | G96: 9 | H96: 38 | I96: 2 | J96: =I96+H96 -> 40 | K96: 40 | L96: Победитель | M96: Ахметзянова АльфияФаруховна | N96: Муниципальное бюджетное общеобразовательное учреждение "Гимназия №179 - центр образования" Ново-Савиновского района г.Казани" | O96: Родная (татарская) литература для обучающихся – татар школ с русским языком обучения
A97: 95 | B97: Ново-Савиновский район | C97: Государственное автономное общеобразовательное учреждение "Полилингвальный комплекс "Адымнар - путь к знаниям и согласию" г. Казани" | D97: Миндиярова | E97: А. | F97: Р. | G97: 8 | H97: 12 | J97: 12 | K97: 35 | L97: Участник | M97: Гараева ЛилияИдрисовна | N97: Государственное автономное общеобразовательное учреждение "Полилингвальный комплекс "Адымнар - путь к знаниям и согласию" г. Казани" | O97: Родная (татарская) литература для обучающихся – татар школ с русским языком обучения
A98: 96 | B98: Советский район | C98: Муниципальное бюджетное общеобразовательное учреждение "Гимназия №175" Советского района г.Казани | D98: Минникаева | E98: З. | F98: А. | G98: 7 | H98: 22.5 | J98: =I98+H98 -> 22.5 | K98: 35 | L98: Участник | M98: Габдулвалиева РамзияНаилеавна | N98: Муниципальное бюджетное общеобразовательное учреждение "Гимназия №175" Советского района г.Казани | O98: Родная (татарская) литература для обучающихся – татар школ с русским языком обучения
A99: 97 | B99: Авиастроительный район | C99: Муниципальное бюджетное общеобразовательное учреждение "Средняя общеобразовательная школа № 54 с углубленным изучением отдельных предметов" Авиастроительного района г.Казани" | D99: Миннулина | E99: А. | F99: И. | G99: 8 | H99: 20 | J99: 20 | K99: 35 | L99: Участник | M99: Аскарова РаисаРаисовна | N99: Муниципальное бюджетное общеобразовательное учреждение "Средняя общеобразовательная школа № 54 с углубленным изучением отдельных предметов" Авиастроительного района г.Казани" | O99: Родная (татарская) литература для обучающихся – татар школ с русским языком обучения
A100: 98 | B100: Советский район | C100: Муниципальное автономное общеобразовательное учреждение "Лицей №121 имени Героя Советского Союза С.А.Ахтямова" Советского района г.Казани | D100: Мирсияпова | E100: Д. | F100: Р. | G100: 11 | H100: 44 | J100: =I100+H100 -> 44 | K100: 60 | L100: Участник | M100: Валиуллина РамзияХашимовна | N100: Муниципальное автономное общеобразовательное учреждение "Лицей №121 имени Героя Советского Союза С.А.Ахтямова" Советского района г.Казани | O100: Родная (татарская) литература для обучающихся – татар школ с русским языком обучения
A101: 99 | B101: Советский район | C101: Муниципальное бюджетное общеобразовательное учреждение "Гимназия №175" Советского района г.Казани | D101: Мифтахова | E101: А. | F101: Р. | G101: 7 | H101: 24.5 | J101: =I101+H101 -> 24.5 | K101: 35 | L101: Призер | M101: Габдулвалиева РамзияНаилеавна | N101: Муниципальное бюджетное общеобразовательное учреждение "Гимназия №175" Советского района г.Казани | O101: Родная (татарская) литература для обучающихся – татар школ с русским языком обучения
A102: 100 | B102: Вахитовский район | C102: Муниципальное бюджетное общеобразовательное учреждение "Средняя общеобразовательная русско-татарская школа №13" | D102: Михайлова | E102: Р. | F102: И. | G102: 10 | H102: 19 | J102: =I102+H102 -> 19 | K102: 55 | L102: Участник | M102: Губайдуллина ФиданияРифкатовна | N102: Муниципальное бюджетное общеобразовательное учреждение "Средняя общеобразовательная русско-татарская школа №13" | O102: Родная (татарская) литература для обучающихся – татар школ с русским языком обучения
A103: 101 | B103: Авиастроительный район | C103: Муниципальное бюджетное общеобразовательное учреждение "Гимназия №33" Авиастроительного района г.Казани" | D103: Мубаракшина | E103: А. | F103: Ф. | G103: 9 | H103: 35 | J103: =I103+H103 -> 35 | K103: 40 | L103: Участник | M103: Шакирова РасулаГабделвалиевна | N103: Муниципальное бюджетное общеобразовательное учреждение "Гимназия №33" Авиастроительного района г.Казани" | O103: Родная (татарская) литература для обучающихся – татар школ с русским языком обучения
A104: 102 | B104: Советский район | C104: Муниципальное бюджетное общеобразовательное учреждение «Средняя общеобразовательная школа с углубленным изучением отдельных предметов №184 им.М.И.Махмутова» | D104: Мударисов | E104: С. | F104: З. | G104: 8 | H104: 17 | J104: 17 | K104: 35 | L104: Участник | M104: Хафизова ИльхамияМуллануровна | N104: Муниципальное бюджетное общеобразовательное учреждение «Средняя общеобразовательная школа с углубленным изучением отдельных предметов №184 им.М.И.Махмутова» | O104: Родная (татарская) литература для обучающихся – татар школ с русским языком обучения
A105: 103 | B105: Авиастроительный район | C105: Муниципальное бюджетное общеобразовательное учреждение "Гимназия №33" Авиастроительного района г.Казани" | D105: Музипова | E105: А. | F105: И. | G105: 7 | H105: 9.5 | J105: =I105+H105 -> 9.5 | K105: 35 | L105: Участник | M105: Хуснутдинова АльбинаАнваровна | N105: Муниципальное бюджетное общеобразовательное учреждение "Гимназия №33" Авиастроительного района г.Казани" | O105: Родная (татарская) литература для обучающихся – татар школ с русским языком обучения
A106: 104 | B106: Советский район | C106: Муниципальное бюджетное общеобразовательное учреждение "Гимназия № 8 -Центр образования" Советского района г. Казани" | D106: Мукминов | E106: А. | F106: А. | G106: 10 | H106: 5 | J106: =I106+H106 -> 5 | K106: 55 | L106: Участник | M106: Мухаметшина ЧулпанФаатовна | N106: Муниципальное бюджетное общеобразовательное учреждение "Гимназия № 8 -Центр образования" Советского района г. Казани" | O106: Родная (татарская) литература для обучающихся – татар школ с русским языком обучения
A107: 105 | B107: Приволжский район | C107: Муниципальное бюджетное общеобразовательное учреждение "Татарско-русская средняя общеобразовательная школа №68 с углубленным изучением отдельных предметов" | D107: Муллагалиева | E107: К. | F107: Н. | G107: 9 | H107: 34 | J107: =I107+H107 -> 34 | K107: 40 | L107: Участник | M107: Андреева ЕленаВасильевна | N107: Муниципальное бюджетное общеобразовательное учреждение "Татарско-русская средняя общеобразовательная школа №68 с углубленным изучением отдельных предметов" | O107: Родная (татарская) литература для обучающихся – татар школ с русским языком обучения
A108: 106 | B108: Советский район | C108: Муниципальное бюджетное общеобразовательное учреждение "Средняя общеобразовательная школа № 47" Советского района г. Казани" | D108: Муллахметова | E108: Л. | F108: Р. | G108: 9 | H108: 25 | J108: =I108+H108 -> 25 | K108: 40 | L108: Участник | M108: Шангараева ГульчачакНургалиевна | N108: Муниципальное бюджетное общеобразовательное учреждение "Средняя общеобразовательная школа № 47" Советского района г. Казани" | O108: Родная (татарская) литература для обучающихся – татар школ с русским языком обучения
A109: 107 | B109: Советский район | C109: Муниципальное бюджетное общеобразовательное учреждение "Гимназия №175" Советского района г.Казани | D109: Мусина | E109: М. | F109: Р. | G109: 11 | H109: 51 | J109: =I109+H109 -> 51 | K109: 60 | L109: Призер | M109: Ахтямова ГульназМингалиевна | N109: Муниципальное бюджетное общеобразовательное учреждение "Гимназия №175" Советского района г.Казани | O109: Родная (татарская) литература для обучающихся – татар школ с русским языком обучения
A110: 108 | B110: Авиастроительный район | C110: Муниципальное бюджетное общеобразовательное учреждение "Лицей №26 им. М.Джалиля" Авиастроительного района г.Казани" | D110: Мустафина | E110: З. | F110: Р. | G110: 8 | H110: 27 | J110: 27 | K110: 35 | L110: Призер | M110: Камалеева ЗолфияМиннуровна | N110: Муниципальное бюджетное общеобразовательное учреждение "Лицей №26 им. М.Джалиля" Авиастроительного района г.Казани" | O110: Родная (татарская) литература для обучающихся – татар школ с русским языком обучения
A111: 109 | B111: Приволжский район | C111: Муниципальное бюджетное общеобразовательное учреждение "Русско-татарская средняя общеобразовательная школа №129" | D111: Мухамедзянова | E111: Э. | F111: А. | G111: 11 | H111: 25 | J111: =I111+H111 -> 25 | K111: 60 | L111: Участник | M111: Зиганшина АльфияНурисламовна | N111: Муниципальное бюджетное общеобразовательное учреждение "Русско-татарская средняя общеобразовательная школа №129" | O111: Родная (татарская) литература для обучающихся – татар школ с русским языком обучения
A112: 110 | B112: Советский район | C112: Муниципальное бюджетное общеобразовательное учреждение "Средняя общеобразовательная школа №167 с углубленным изучением отдельных предметов" Советского района г. Казани | D112: Мухаметзянов | E112: А. | F112: А. | G112: 7 | H112: 20.5 | J112: =I112+H112 -> 20.5 | K112: 35 | L112: Участник | M112: Набиуллина ЗульфияХатиповна | N112: Муниципальное бюджетное общеобразовательное учреждение "Средняя общеобразовательная школа №167 с углубленным изучением отдельных предметов" Советского района г. Казани | O112: Родная (татарская) литература для обучающихся – татар школ с русским языком обучения
A113: 111 | B113: Советский район | C113: Муниципальное бюджетное общеобразовательное учреждение "Средняя общеобразовательная школа №167 с углубленным изучением отдельных предметов" Советского района г. Казани | D113: Мухаметзянова | E113: А. | F113: А. | G113: 10 | H113: 51 | J113: =I113+H113 -> 51 | K113: 55 | L113: Призер | M113: Садриева ЭльмираИльмасовна | N113: Муниципальное бюджетное общеобразовательное учреждение "Средняя общеобразовательная школа №167 с углубленным изучением отдельных предметов" Советского района г. Казани | O113: Родная (татарская) литература для обучающихся – татар школ с русским языком обучения
A114: 112 | B114: Кировский район | C114: Муниципальное автономное общеобразовательное учреждение "Гимназия - интернат №4" Кировского района г.Казани | D114: Мухаметова | E114: И. | F114: А. | G114: 10 | H114: 27 | J114: =I114+H114 -> 27 | K114: 55 | L114: Участник | M114: Садыкова РамзияГабидулловна | N114: Муниципальное автономное общеобразовательное учреждение "Гимназия - интернат №4" Кировского района г.Казани | O114: Родная (татарская) литература для обучающихся – татар школ с русским языком обучения
A115: 113 | B115: Советский район | C115: Муниципальное бюджетное общеобразовательное учреждение "Средняя общеобразовательная школа № 47" Советского района г. Казани" | D115: Мухлисова | E115: Г. | F115: Д. | G115: 9 | H115: 12.5 | J115: =I115+H115 -> 12.5 | K115: 40 | L115: Участник | M115: Шангараева ГульчачакНургалиевна | N115: Муниципальное бюджетное общеобразовательное учреждение "Средняя общеобразовательная школа № 47" Советского района г. Казани" | O115: Родная (татарская) литература для обучающихся – татар школ с русским языком обучения
A116: 114 | B116: Кировский район | C116: Муниципальное автономное общеобразовательное учреждение "Гимназия - интернат №4" Кировского района г.Казани | D116: Набиева | E116: Р. | F116: И. | G116: 8 | H116: 10 | J116: 10 | K116: 35 | L116: Участник | M116: Садыкова РамзияГабидулловна | N116: Муниципальное автономное общеобразовательное учреждение "Гимназия - интернат №4" Кировского района г.Казани | O116: Родная (татарская) литература для обучающихся – татар школ с русским языком обучения
A117: 115 | B117: Приволжский район | C117: Муниципальное бюджетное общеобразовательное учреждение "Гимназия №6" | D117: Нигматулина | E117: А. | F117: Р. | G117: 9 | H117: 27 | J117: =I117+H117 -> 27 | K117: 40 | L117: Участник | M117: Низамиева ЛилияНазимовна | N117: Муниципальное бюджетное общеобразовательное учреждение "Гимназия №6" | O117: Родная (татарская) литература для обучающихся – татар школ с русским языком обучения
A118: 116 | B118: Авиастроительный район | C118: Муниципальное бюджетное общеобразовательное учреждение "Гимназия №33" Авиастроительного района г.Казани" | D118: Нигматуллина | E118: А. | F118: И. | G118: 7 | H118: 14.5 | J118: =I118+H118 -> 14.5 | K118: 35 | L118: Участник | M118: Хуснутдинова АльбинаАнваровна | N118: Муниципальное бюджетное общеобразовательное учреждение "Гимназия №33" Авиастроительного района г.Казани" | O118: Родная (татарская) литература для обучающихся – татар школ с русским языком обучения
A119: 117 | B119: Советский район | C119: Муниципальное бюджетное общеобразовательное учреждение "Средняя общеобразовательная школа № 144 с углубленным изучением отдельных предметов" Советского района г.Казани" | D119: Низамова | E119: А. | F119: Х. | G119: 9 | H119: 18 | J119: =I119+H119 -> 18 | K119: 40 | L119: Участник | M119: Муслимова РамзияВакиповна | N119: Муниципальное бюджетное общеобразовательное учреждение "Средняя общеобразовательная школа № 144 с углубленным изучением отдельных предметов" Советского района г.Казани" | O119: Родная (татарская) литература для обучающихся – татар школ с русским языком обучения
A120: 118 | B120: Приволжский район | C120: Муниципальное бюджетное общеобразовательное учреждение "Лицей №35 - образовательный центр "Галактика" Приволжского района города Казани" | D120: Нугуманова | E120: К. | F120: К. | G120: 10 | H120: 38 | J120: =I120+H120 -> 38 | K120: 55 | L120: Участник | M120: Гилязова ГульнараФаиловна | N120: Муниципальное бюджетное общеобразовательное учреждение "Лицей №35 - образовательный центр "Галактика" Приволжского района города Казани" | O120: Родная (татарская) литература для обучающихся – татар школ с русским языком обучения
A121: 119 | B121: Советский район | C121: Муниципальное бюджетное общеобразовательное учреждение "Средняя общеобразовательная школа № 171 с углубленным изучением отдельных предметов" Советского района г.Казани | D121: Нурмиева | E121: Д. | F121: Р. | G121: 8 | H121: 16 | J121: 16 | K121: 35 | L121: Участник | M121: Каримова ЗульфияИлдаровна | N121: Муниципальное бюджетное общеобразовательное учреждение "Средняя общеобразовательная школа № 171 с углубленным изучением отдельных предметов" Советского района г.Казани | O121: Родная (татарская) литература для обучающихся – татар школ с русским языком обучения
A122: 120 | B122: Авиастроительный район | C122: Муниципальное бюджетное общеобразовательное учреждение "Гимназия №33" Авиастроительного района г.Казани" | D122: Петрова | E122: Д. | F122: А. | G122: 10 | H122: 28 | J122: =I122+H122 -> 28 | K122: 55 | L122: Участник | M122: Петрова ГузалияРузаловна | N122: Муниципальное бюджетное общеобразовательное учреждение "Гимназия №33" Авиастроительного района г.Казани" | O122: Родная (татарская) литература для обучающихся – татар школ с русским языком обучения
A123: 121 | B123: Приволжский район | C123: Муниципальное бюджетное общеобразовательное учреждение "Лицей №35 - образовательный центр "Галактика" Приволжского района города Казани" | D123: Рахимзянова | E123: А. | F123: И. | G123: 10 | H123: 36 | J123: =I123+H123 -> 36 | K123: 55 | L123: Участник | M123: Гилязова ГульнараФаиловна | N123: Муниципальное бюджетное общеобразовательное учреждение "Лицей №35 - образовательный центр "Галактика" Приволжского района города Казани" | O123: Родная (татарская) литература для обучающихся – татар школ с русским языком обучения
A124: 122 | B124: Приволжский район | C124: Муниципальное бюджетное общеобразовательное учреждение "Русско-татарская средняя общеобразовательная школа №129" | D124: Рахимова | E124: А. | F124: И. | G124: 7 | H124: 17 | J124: =I124+H124 -> 17 | K124: 35 | L124: Участник | M124: Салимулина ГульчачакВалинуровна | N124: Муниципальное бюджетное общеобразовательное учреждение "Русско-татарская средняя общеобразовательная школа №129" | O124: Родная (татарская) литература для обучающихся – татар школ с русским языком обучения
A125: 123 | B125: Советский район | C125: Муниципальное бюджетное общеобразовательное учреждение "Средняя общеобразовательная школа № 171 с углубленным изучением отдельных предметов" Советского района г.Казани | D125: Рахматуллина | E125: З. | F125: Р. | G125: 8 | H125: 19 | J125: 19 | K125: 35 | L125: Участник | M125: Каримова ЗульфияИлдаровна | N125: Муниципальное бюджетное общеобразовательное учреждение "Средняя общеобразовательная школа № 171 с углубленным изучением отдельных предметов" Советского района г.Казани | O125: Родная (татарская) литература для обучающихся – татар школ с русским языком обучения
A126: 124 | B126: Приволжский район | C126: Муниципальное бюджетное общеобразовательное учреждение "Средняя общеобразовательная школа №42" | D126: Сабитова | E126: Н. | F126: Б. | G126: 9 | H126: 39 | J126: =I126+H126 -> 39 | K126: 40 | L126: Призер | M126: Заитова ГузалияАхтямовна | N126: Муниципальное бюджетное общеобразовательное учреждение "Средняя общеобразовательная школа №42" | O126: Родная (татарская) литература для обучающихся – татар школ с русским языком обучения
A127: 125 | B127: Советский район | C127: Муниципальное бюджетное общеобразовательное учреждение "Гимназия №175" Советского района г.Казани | D127: Сагдеева | E127: Р. | F127: Н. | G127: 8 | H127: 27 | J127: 27 | K127: 35 | L127: Призер | M127: Галиуллина ДиляраАхмадулловна | N127: Муниципальное бюджетное общеобразовательное учреждение "Гимназия №175" Советского района г.Казани | O127: Родная (татарская) литература для обучающихся – татар школ с русским языком обучения
A128: 126 | B128: Советский район | C128: Муниципальное бюджетное общеобразовательное учреждение "Средняя общеобразовательная школа № 171 с углубленным изучением отдельных предметов" Советского района г.Казани | D128: Садриев | E128: К. | F128: Р. | G128: 7 | H128: 26.5 | J128: =I128+H128 -> 26.5 | K128: 35 | L128: Призер | M128: Ахатова ГелюсяШаукатовна | N128: Муниципальное бюджетное общеобразовательное учреждение "Средняя общеобразовательная школа № 171 с углубленным изучением отдельных предметов" Советского района г.Казани | O128: Родная (татарская) литература для обучающихся – татар школ с русским языком обучения
A129: 127 | B129: Ново-Савиновский район | C129: Муниципальное бюджетное общеобразовательное учреждение "Лицей №177" Ново-Савиновского района г. Казани" | D129: Саетов | E129: Р. | F129: И. | G129: 10 | H129: 9 | J129: =I129+H129 -> 9 | K129: 55 | L129: Участник | M129: Исхакова ЛилияШаукатовна | N129: Муниципальное бюджетное общеобразовательное учреждение "Лицей №177" Ново-Савиновского района г. Казани" | O129: Родная (татарская) литература для обучающихся – татар школ с русским языком обучения
A130: 128 | B130: Советский район | C130: Муниципальное бюджетное общеобразовательное учреждение "Средняя общеобразовательная школа № 169" Советского района г.Казани" | D130: Сайфутдинова | E130: Г. | F130: Р. | G130: 8 | H130: 30 | J130: 30 | K130: 35 | L130: Призер | M130: Хамидуллина ЛюцияСаетгараевна | N130: Муниципальное бюджетное общеобразовательное учреждение "Средняя общеобразовательная школа № 169" Советского района г.Казани" | O130: Родная (татарская) литература для обучающихся – татар школ с русским языком обучения
A131: 130 | B131: Приволжский район | C131: Муниципальное бюджетное общеобразовательное учреждение "Гимназия №6" | D131: Салахова | E131: И. | F131: И. | G131: 7 | H131: 21.5 | J131: =I131+H131 -> 21.5 | K131: 35 | L131: Участник | M131: Гильманова ЭльмираХайдаровна | N131: Муниципальное бюджетное общеобразовательное учреждение "Гимназия №6" | O131: Родная (татарская) литература для обучающихся – татар школ с русским языком обучения
A132: 129 | B132: Советский район | C132: Муниципальное бюджетное общеобразовательное учреждение "Средняя общеобразовательная школа №167 с углубленным изучением отдельных предметов" Советского района г. Казани | D132: Салахова | E132: А. | F132: Ф. | G132: 10 | H132: 35 | J132: =I132+H132 -> 35 | K132: 55 | L132: Участник | M132: Хальфина ВенераРафкатовна | N132: Муниципальное бюджетное общеобразовательное учреждение "Средняя общеобразовательная школа №167 с углубленным изучением отдельных предметов" Советского района г. Казани | O132: Родная (татарская) литература для обучающихся – татар школ с русским языком обучения
A133: 131 | B133: Авиастроительный район | C133: Муниципальное бюджетное общеобразовательное учреждение "Гимназия №33" Авиастроительного района г.Казани" | D133: Салахова | E133: К. | F133: И. | G133: 8 | H133: 20 | J133: 20 | K133: 35 | L133: Участник | M133: Мусаяпова НасимаХайбулловна | N133: Муниципальное бюджетное общеобразовательное учреждение "Гимназия №33" Авиастроительного района г.Казани" | O133: Родная (татарская) литература для обучающихся – татар школ с русским языком обучения
A134: 132 | B134: Авиастроительный район | C134: Муниципальное бюджетное общеобразовательное учреждение "Средняя общеобразовательная школа № 54 с углубленным изучением отдельных предметов" Авиастроительного района г.Казани" | D134: Самигуллина | E134: Р. | F134: А. | G134: 9 | H134: 37 | J134: =I134+H134 -> 37 | K134: 40 | L134: Призер | M134: Аскарова РаисаРаисовна | N134: Муниципальное бюджетное общеобразовательное учреждение "Средняя общеобразовательная школа № 54 с углубленным изучением отдельных предметов" Авиастроительного района г.Казани" | O134: Родная (татарская) литература для обучающихся – татар школ с русским языком обучения
A135: 133 | B135: Кировский район | C135: Муниципальное бюджетное общеобразовательное учреждение "Средняя русско-татарская общеобразовательная школа №57" г.Казани" | D135: Сатарова | E135: И. | F135: Ш. | G135: 10 | H135: 25 | J135: =I135+H135 -> 25 | K135: 55 | L135: Участник | M135: Маткулова ЧулпанФердусовна | N135: Муниципальное бюджетное общеобразовательное учреждение "Средняя русско-татарская общеобразовательная школа №57" г.Казани" | O135: Родная (татарская) литература для обучающихся – татар школ с русским языком обучения
A136: 135 | B136: Московский район | C136: Муниципальное бюджетное общеобразовательное учреждение "Гимназия № 122 имени Ж.А.Зайцевой"Московского района г. Казани" | D136: Сафина | E136: А. | F136: Р. | G136: 8 | H136: 33 | J136: 33 | K136: 35 | L136: Победитель | M136: Зейналова ГульнараНаилевна | N136: Муниципальное бюджетное общеобразовательное учреждение "Гимназия № 122 имени Ж.А.Зайцевой"Московского района г. Казани" | O136: Родная (татарская) литература для обучающихся – татар школ с русским языком обучения
A137: 136 | B137: Ново-Савиновский район | C137: Муниципальное бюджетное общеобразовательное учреждение "Гимназия №7 имени Героя России А.В.Козина" Ново-Савиновского района г. Казани" | D137: Сафина | E137: А. | F137: И. | G137: 8 | H137: 27 | I137: 2 | J137: 29 | K137: 35 | L137: Призер | M137: Набиуллина ТаслимаГиниятовна | N137: Муниципальное бюджетное общеобразовательное учреждение "Гимназия №7 имени Героя России А.В.Козина" Ново-Савиновского района г. Казани" | O137: Родная (татарская) литература для обучающихся – татар школ с русским языком обучения
A138: 134 | B138: Приволжский район | C138: Муниципальное бюджетное общеобразовательное учреждение "Лицей №83 - Центр образования" | D138: Сафина | E138: А. | F138: Р. | G138: 10 | H138: 27 | J138: =I138+H138 -> 27 | K138: 55 | L138: Участник | M138: Галиева АлсуИльгизовна | N138: Муниципальное бюджетное общеобразовательное учреждение "Лицей №83 - Центр образования" | O138: Родная (татарская) литература для обучающихся – татар школ с русским языком обучения
A139: 137 | B139: Советский район | C139: Муниципальное бюджетное общеобразовательное учреждение "Гимназия № 90" Советского района г.Казани" | D139: Семенова | E139: А. | F139: В. | G139: 8 | H139: 22 | J139: 22 | K139: 35 | L139: Участник | M139: Салахова ИлюсаАдиповна | N139: Муниципальное бюджетное общеобразовательное учреждение "Гимназия № 90" Советского района г.Казани" | O139: Родная (татарская) литература для обучающихся – татар школ с русским языком обучения
A140: 138 | B140: Авиастроительный район | C140: Муниципальное бюджетное общеобразовательное учреждение "Гимназия №33" Авиастроительного района г.Казани" | D140: Сибгатов | E140: Б. | F140: Р. | G140: 9 | H140: 31 | J140: =I140+H140 -> 31 | K140: 40 | L140: Участник | M140: Петрова ГузалияРузаловна | N140: Муниципальное бюджетное общеобразовательное учреждение "Гимназия №33" Авиастроительного района г.Казани" | O140: Родная (татарская) литература для обучающихся – татар школ с русским языком обучения
A141: 139 | B141: Приволжский район | C141: Муниципальное бюджетное общеобразовательное учреждение "Русско-татарская средняя общеобразовательная школа №129" | D141: Сибгатуллина | E141: А. | F141: И. | G141: 11 | H141: 40 | J141: =I141+H141 -> 40 | K141: 60 | L141: Участник | M141: Зиганшина АльфияНурисламовна | N141: Муниципальное бюджетное общеобразовательное учреждение "Русско-татарская средняя общеобразовательная школа №129" | O141: Родная (татарская) литература для обучающихся – татар школ с русским языком обучения
A142: 140 | B142: Советский район | C142: Муниципальное бюджетное общеобразовательное учреждение "Лицей № 159" Советского района г.Казани" | D142: Тагирова | E142: А. | F142: А. | G142: 11 | H142: 33 | J142: =I142+H142 -> 33 | K142: 60 | L142: Участник | M142: Галимуллина ЛилияФаргатовна | N142: Муниципальное бюджетное общеобразовательное учреждение "Лицей № 159" Советского района г.Казани" | O142: Родная (татарская) литература для обучающихся – татар школ с русским языком обучения
A143: 141 | B143: Приволжский район | C143: Муниципальное бюджетное общеобразовательное учреждение "Лицей №83 - Центр образования" | D143: Тазиев | E143: Т. | F143: И. | G143: 9 | H143: 28 | J143: =I143+H143 -> 28 | K143: 40 | L143: Участник | M143: Абдуллина АлсуЗуфаровна | N143: Муниципальное бюджетное общеобразовательное учреждение "Лицей №83 - Центр образования" | O143: Родная (татарская) литература для обучающихся – татар школ с русским языком обучения
A144: 142 | B144: Советский район | C144: Муниципальное автономное общеобразовательное учреждение "Лицей №121 имени Героя Советского Союза С.А.Ахтямова" Советского района г.Казани | D144: Тазиева | E144: А. | F144: Н. | G144: 10 | H144: 44 | J144: =I144+H144 -> 44 | K144: 55 | L144: Призер | M144: Валиуллина РамзияХашимовна | N144: Муниципальное автономное общеобразовательное учреждение "Лицей №121 имени Героя Советского Союза С.А.Ахтямова" Советского района г.Казани | O144: Родная (татарская) литература для обучающихся – татар школ с русским языком обучения
A145: 143 | B145: Ново-Савиновский район | C145: Государственное автономное общеобразовательное учреждение "Полилингвальный комплекс "Адымнар - путь к знаниям и согласию" г. Казани" | D145: Тухватуллин | E145: А. | F145: Э. | G145: 8 | H145: 9 | J145: 9 | K145: 35 | L145: Участник | M145: Гараева ЛилияИдрисовна | N145: Государственное автономное общеобразовательное учреждение "Полилингвальный комплекс "Адымнар - путь к знаниям и согласию" г. Казани" | O145: Родная (татарская) литература для обучающихся – татар школ с русским языком обучения
A146: 144 | B146: Советский район | C146: Муниципальное бюджетное общеобразовательное учреждение "Средняя общеобразовательная школа № 171 с углубленным изучением отдельных предметов" Советского района г.Казани | D146: Фазлиахметов | E146: И. | F146: И. | G146: 7 | H146: 22.5 | J146: =I146+H146 -> 22.5 | K146: 35 | L146: Участник | M146: Ахатова ГелюсяШаукатовна | N146: Муниципальное бюджетное общеобразовательное учреждение "Средняя общеобразовательная школа № 171 с углубленным изучением отдельных предметов" Советского района г.Казани | O146: Родная (татарская) литература для обучающихся – татар школ с русским языком обучения
A147: 145 | B147: Авиастроительный район | C147: Муниципальное бюджетное общеобразовательное учреждение "Лицей №145" Авиастроительного района г.Казани" | D147: Фазылзянова | E147: Д. | F147: А. | G147: 8 | H147: 25 | J147: 25 | K147: 35 | L147: Участник | M147: Захарова МарияПавловна | N147: Муниципальное бюджетное общеобразовательное учреждение "Лицей №145" Авиастроительного района г.Казани" | O147: Родная (татарская) литература для обучающихся – татар школ с русским языком обучения
A148: 146 | B148: Ново-Савиновский район | C148: Государственное автономное общеобразовательное учреждение "Полилингвальный комплекс "Адымнар - путь к знаниям и согласию" г. Казани" | D148: Файзова | E148: А. | F148: И. | G148: 8 | H148: 14 | J148: 14 | K148: 35 | L148: Участник | M148: Сафарова АлсуГабдулхаковна | N148: Государственное автономное общеобразовательное учреждение "Полилингвальный комплекс "Адымнар - путь к знаниям и согласию" г. Казани" | O148: Родная (татарская) литература для обучающихся – татар школ с русским языком обучения
A149: 147 | B149: Советский район | C149: Муниципальное бюджетное общеобразовательное учреждение "Гимназия № 90" Советского района г.Казани" | D149: Файзулина | E149: А. | F149: Ф. | G149: 10 | H149: 39 | J149: =I149+H149 -> 39 | K149: 55 | L149: Участник | M149: Габдулхакова ГульчачакРашитовна | N149: Муниципальное бюджетное общеобразовательное учреждение "Гимназия № 90" Советского района г.Казани" | O149: Родная (татарская) литература для обучающихся – татар школ с русским языком обучения
A150: 148 | B150: Советский район | C150: Муниципальное бюджетное общеобразовательное учреждение "Средняя общеобразовательная школа №167 с углубленным изучением отдельных предметов" Советского района г. Казани | D150: Фасихова | E150: Д. | F150: Н. | G150: 9 | H150: 30 | J150: =I150+H150 -> 30 | K150: 40 | L150: Участник | M150: Садриева ЭльмираИльмасовна | N150: Муниципальное бюджетное общеобразовательное учреждение "Средняя общеобразовательная школа №167 с углубленным изучением отдельных предметов" Советского района г. Казани | O150: Родная (татарская) литература для обучающихся – татар школ с русским языком обучения
A151: 149 | B151: Советский район | C151: Муниципальное бюджетное общеобразовательное учреждение "Гимназия № 90" Советского района г.Казани" | D151: Фаттахова | E151: А. | F151: Р. | G151: 8 | H151: 10 | J151: 10 | K151: 35 | L151: Участник | M151: Салахова ИлюсаАдиповна | N151: Муниципальное бюджетное общеобразовательное учреждение "Гимназия № 90" Советского района г.Казани" | O151: Родная (татарская) литература для обучающихся – татар школ с русским языком обучения
A152: 150 | B152: Советский район | C152: Муниципальное бюджетное общеобразовательное учреждение "Многопрофильная школа №181" Советского района г. Казани" | D152: Фатхиева | E152: А. | F152: А. | G152: 8 | H152: 10 | J152: 10 | K152: 35 | L152: Участник | M152: Валиуллина АльфинурФакиловна | N152: Муниципальное бюджетное общеобразовательное учреждение "Многопрофильная школа №181" Советского района г. Казани" | O152: Родная (татарская) литература для обучающихся – татар школ с русским языком обучения
A153: 151 | B153: Советский район | C153: Муниципальное бюджетное общеобразовательное учреждение "Гимназия № 20 имени Абдуллы Алиша" Советского района города Казани" | D153: Фатыхов | E153: Н. | F153: Р. | G153: 10 | H153: 29 | J153: =I153+H153 -> 29 | K153: 55 | L153: Участник | M153: Фахрутдинова ГульшатМухаметовна | N153: Муниципальное бюджетное общеобразовательное учреждение "Гимназия № 20 имени Абдуллы Алиша" Советского района города Казани" | O153: Родная (татарская) литература для обучающихся – татар школ с русским языком обучения
A154: 152 | B154: Ново-Савиновский район | C154: Государственное автономное общеобразовательное учреждение "Полилингвальный комплекс "Адымнар - путь к знаниям и согласию" г. Казани" | D154: Хабибрахманова | E154: Т. | F154: Т. | G154: 7 | H154: 17 | J154: =I154+H154 -> 17 | K154: 35 | L154: Участник | M154: Габдулина АльмираФердинантовна | N154: Государственное автономное общеобразовательное учреждение "Полилингвальный комплекс "Адымнар - путь к знаниям и согласию" г. Казани" | O154: Родная (татарская) литература для обучающихся – татар школ с русским языком обучения
A155: 153 | B155: Ново-Савиновский район | C155: Государственное автономное общеобразовательное учреждение "Полилингвальный комплекс "Адымнар - путь к знаниям и согласию" г. Казани" | D155: Хабибуллин | E155: А. | F155: Р. | G155: 7 | H155: 14.5 | J155: =I155+H155 -> 14.5 | K155: 35 | L155: Участник | M155: Гараева ЛилияИдрисовна | N155: Государственное автономное общеобразовательное учреждение "Полилингвальный комплекс "Адымнар - путь к знаниям и согласию" г. Казани" | O155: Родная (татарская) литература для обучающихся – татар школ с русским языком обучения
A156: 154 | B156: Советский район | C156: Муниципальное бюджетное общеобразовательное учреждение "Гимназия № 20 имени Абдуллы Алиша" Советского района города Казани" | D156: Хабибуллин | E156: В. | F156: И. | G156: 8 | H156: 8 | J156: 8 | K156: 35 | L156: Участник | M156: Галиева ГульназШамиловна | N156: Муниципальное бюджетное общеобразовательное учреждение "Гимназия № 20 имени Абдуллы Алиша" Советского района города Казани" | O156: Родная (татарская) литература для обучающихся – татар школ с русским языком обучения
A157: 157 | B157: Авиастроительный район | C157: Муниципальное бюджетное общеобразовательное учреждение "Лицей №26 им. М.Джалиля" Авиастроительного района г.Казани" | D157: Хабибуллина | E157: А. | F157: Р. | G157: 9 | H157: 40 | J157: =I157+H157 -> 40 | K157: 40 | L157: Победитель | M157: Камалеева ЗолфияМиннуровна | N157: Муниципальное бюджетное общеобразовательное учреждение "Лицей №26 им. М.Джалиля" Авиастроительного района г.Казани" | O157: Родная (татарская) литература для обучающихся – татар школ с русским языком обучения
A158: 156 | B158: Советский район | C158: Муниципальное бюджетное общеобразовательное учреждение "Гимназия № 90" Советского района г.Казани" | D158: Хабибуллина | E158: А. | F158: М. | G158: 7 | H158: 22 | J158: =I158+H158 -> 22 | K158: 35 | L158: Участник | M158: Габдулхакова ГульчачакРашитовна | N158: Муниципальное бюджетное общеобразовательное учреждение "Гимназия № 90" Советского района г.Казани" | O158: Родная (татарская) литература для обучающихся – татар школ с русским языком обучения
A159: 155 | B159: Приволжский район | C159: Муниципальное автономное общеобразовательное учреждение "Гимназия № 139" | D159: Хабибуллина | E159: Р. | F159: Р. | G159: 11 | H159: 27 | J159: =I159+H159 -> 27 | K159: 60 | L159: Участник | M159: Калимуллина РезедаРафкатовна | N159: Муниципальное автономное общеобразовательное учреждение "Гимназия № 139" | O159: Родная (татарская) литература для обучающихся – татар школ с русским языком обучения
A160: 158 | B160: Приволжский район | C160: Муниципальное бюджетное общеобразовательное учреждение "Средняя общеобразовательная школа №24 с углубленным изучением отдельных предметов" | D160: Хадиатуллина | E160: К. | F160: Р. | G160: 9 | H160: 26 | J160: =I160+H160 -> 26 | K160: 40 | L160: Участник | M160: Халиуллина ГолсиринАхметовна | N160: Муниципальное бюджетное общеобразовательное учреждение "Средняя общеобразовательная школа №24 с углубленным изучением отдельных предметов" | O160: Родная (татарская) литература для обучающихся – татар школ с русским языком обучения
A161: 159 | B161: Ново-Савиновский район | C161: Муниципальное бюджетное общеобразовательное учреждение "Средняя общеобразовательная школа №170 с углубленным изучением отдельных предметов" Ново-Савиновского района г. Казани" | D161: Хазиева | E161: А. | F161: Р. | G161: 8 | H161: 31 | J161: 31 | K161: 35 | L161: Победитель | M161: Гарипова ИльгизаРифкатовна | N161: Муниципальное бюджетное общеобразовательное учреждение "Средняя общеобразовательная школа №170 с углубленным изучением отдельных предметов" Ново-Савиновского района г. Казани" | O161: Родная (татарская) литература для обучающихся – татар школ с русским языком обучения
A162: 160 | B162: Ново-Савиновский район | C162: Государственное автономное общеобразовательное учреждение "Полилингвальный комплекс "Адымнар - путь к знаниям и согласию" г. Казани" | D162: Хайруллина | E162: А. | F162: А. | G162: 7 | H162: 6 | J162: =I162+H162 -> 6 | K162: 35 | L162: Участник | M162: Гараева ЛилияИдрисовна | N162: Государственное автономное общеобразовательное учреждение "Полилингвальный комплекс "Адымнар - путь к знаниям и согласию" г. Казани" | O162: Родная (татарская) литература для обучающихся – татар школ с русским языком обучения
A163: 161 | B163: Приволжский район | C163: Муниципальное бюджетное общеобразовательное учреждение "Гимназия №6" | D163: Хайрутдинова | E163: А. | F163: А. | G163: 7 | H163: 24.5 | J163: 24.5 | K163: 35 | L163: Призер | M163: Гильманова ЭльмираХайдаровна | N163: Муниципальное бюджетное общеобразовательное учреждение "Гимназия №6" | O163: Родная (татарская) литература для обучающихся – татар школ с русским языком обучения
A164: 162 | B164: Авиастроительный район | C164: Муниципальное бюджетное общеобразовательное учреждение "Гимназия №33" Авиастроительного района г.Казани" | D164: Хакимов | E164: И. | F164: А. | G164: 7 | H164: 11.5 | J164: 11.5 | K164: 35 | L164: Участник | M164: Хуснутдинова АльбинаАнваровна | N164: Муниципальное бюджетное общеобразовательное учреждение "Гимназия №33" Авиастроительного района г.Казани" | O164: Родная (татарская) литература для обучающихся – татар школ с русским языком обучения
A165: 163 | B165: Советский район | C165: Муниципальное бюджетное общеобразовательное учреждение "Средняя общеобразовательная школа № 84 с углубленным изучением иностранных языков" Советского района г. Казани" | D165: Хакимова | E165: Н. | F165: Р. | G165: 10 | H165: 43 | I165: 3 | J165: 46 | K165: 55 | L165: Призер | M165: Хакимова ГульнараКотдусовна | N165: Муниципальное бюджетное общеобразовательное учреждение "Средняя общеобразовательная школа № 84 с углубленным изучением иностранных языков" Советского района г. Казани" | O165: Родная (татарская) литература для обучающихся – татар школ с русским языком обучения
A166: 164 | B166: Авиастроительный район | C166: Муниципальное бюджетное общеобразовательное учреждение "Гимназия №33" Авиастроительного района г.Казани" | D166: Хакимова | E166: Р. | F166: А. | G166: 11 | H166: 49 | J166: 49 | K166: 60 | L166: Призер | M166: Мусаяпова Насима Хайбулловна | N166: МБОУ "Гимназия №33" | O166: Родная (татарская) литература для обучающихся – татар школ с русским языком обучения
A167: 166 | B167: Авиастроительный район | C167: Муниципальное бюджетное общеобразовательное учреждение "Гимназия №33" Авиастроительного района г.Казани" | D167: Хакимова | E167: Э. | F167: А. | G167: 9 | H167: 36 | J167: 36 | K167: 40 | L167: Призер | M167: Шакирова РасулаГабделвалиевна | N167: Муниципальное бюджетное общеобразовательное учреждение "Гимназия №33" Авиастроительного района г.Казани" | O167: Родная (татарская) литература для обучающихся – татар школ с русским языком обучения
A168: 165 | B168: Кировский район | C168: Муниципальное автономное общеобразовательное учреждение "Гимназия - интернат №4" Кировского района г.Казани | D168: Хакимова | E168: М. | F168: И. | G168: 7 | H168: 15 | J168: 15 | K168: 35 | L168: Участник | M168: Садыкова РамзияГабидулловна | N168: Муниципальное автономное общеобразовательное учреждение "Гимназия - интернат №4" Кировского района г.Казани | O168: Родная (татарская) литература для обучающихся – татар школ с русским языком обучения
A169: 167 | B169: Приволжский район | C169: Муниципальное бюджетное общеобразовательное учреждение "Лицей №83 - Центр образования" | D169: Халикова | E169: А. | F169: Р. | G169: 7 | H169: 22 | J169: 22 | K169: 35 | L169: Участник | M169: Галимова ГульшатНаилевна | N169: Муниципальное бюджетное общеобразовательное учреждение "Лицей №83 - Центр образования" | O169: Родная (татарская) литература для обучающихся – татар школ с русским языком обучения
A170: 168 | B170: Авиастроительный район | C170: Муниципальное бюджетное общеобразовательное учреждение "Средняя общеобразовательная школа № 54 с углубленным изучением отдельных предметов" Авиастроительного района г.Казани" | D170: Халилова | E170: А. | F170: Р. | G170: 9 | H170: 33 | J170: 33 | K170: 40 | L170: Участник | M170: Аскарова РаисаРаисовна | N170: Муниципальное бюджетное общеобразовательное учреждение "Средняя общеобразовательная школа № 54 с углубленным изучением отдельных предметов" Авиастроительного района г.Казани" | O170: Родная (татарская) литература для обучающихся – татар школ с русским языком обучения
A171: 169 | B171: Советский район | C171: Муниципальное бюджетное общеобразовательное учреждение "Средняя общеобразовательная школа № 47" Советского района г. Казани" | D171: Хамзина | E171: А. | F171: Р. | G171: 8 | H171: 10 | J171: 10 | K171: 35 | L171: Участник | M171: Шангараева ГульчачакНургалиевна | N171: Муниципальное бюджетное общеобразовательное учреждение "Средняя общеобразовательная школа № 47" Советского района г. Казани" | O171: Родная (татарская) литература для обучающихся – татар школ с русским языком обучения
A172: 170 | B172: Советский район | C172: Муниципальное автономное общеобразовательное учреждение "Лицей №121 имени Героя Советского Союза С.А.Ахтямова" Советского района г.Казани | D172: Ханмурзин | E172: Р. | F172: З. | G172: 10 | H172: 36 | J172: =I172+H172 -> 36 | K172: 55 | L172: Участник | M172: Валиуллина РамзияХашимовна | N172: Муниципальное автономное общеобразовательное учреждение "Лицей №121 имени Героя Советского Союза С.А.Ахтямова" Советского района г.Казани | O172: Родная (татарская) литература для обучающихся – татар школ с русским языком обучения
A173: 171 | B173: Советский район | C173: Муниципальное автономное общеобразовательное учреждение "Лицей №121 имени Героя Советского Союза С.А.Ахтямова" Советского района г.Казани | D173: Хасанзянов | E173: Р. | F173: Р. | G173: 10 | H173: 41 | J173: =I173+H173 -> 41 | K173: 55 | L173: Призер | M173: Валиуллина РамзияХашимовна | N173: Муниципальное автономное общеобразовательное учреждение "Лицей №121 имени Героя Советского Союза С.А.Ахтямова" Советского района г.Казани | O173: Родная (татарская) литература для обучающихся – татар школ с русским языком обучения
A174: 172 | B174: Приволжский район | C174: Муниципальное бюджетное общеобразовательное учреждение "Татарско-русская средняя общеобразовательная школа №10 с углубленным изучением отдельных предметов" | D174: Хасаншина | E174: Л. | F174: Р. | G174: 9 | H174: 28 | J174: =I174+H174 -> 28 | K174: 40 | L174: Участник | M174: Хайрутдинова АлсуНаиловна | N174: Муниципальное бюджетное общеобразовательное учреждение "Татарско-русская средняя общеобразовательная школа №10 с углубленным изучением отдельных предметов" | O174: Родная (татарская) литература для обучающихся – татар школ с русским языком обучения
A175: 173 | B175: Советский район | C175: Муниципальное бюджетное общеобразовательное учреждение "Средняя общеобразовательная школа № 171 с углубленным изучением отдельных предметов" Советского района г.Казани | D175: Хасбиуллина | E175: Л. | F175: Ф. | G175: 11 | H175: 45 | J175: =I175+H175 -> 45 | K175: 60 | L175: Участник | M175: Каримова ЗульфияИлдаровна | N175: Муниципальное бюджетное общеобразовательное учреждение "Средняя общеобразовательная школа № 171 с углубленным изучением отдельных предметов" Советского района г.Казани | O175: Родная (татарская) литература для обучающихся – татар школ с русским языком обучения
A176: 174 | B176: Советский район | C176: Муниципальное бюджетное общеобразовательное учреждение "Гимназия №175" Советского района г.Казани | D176: Хафизова | E176: Ф. | F176: И. | G176: 10 | H176: 48 | J176: =I176+H176 -> 48 | K176: 55 | L176: Призер | M176: Гафарова ГульнараГалимхановна | N176: Муниципальное бюджетное общеобразовательное учреждение "Гимназия №175" Советского района г.Казани | O176: Родная (татарская) литература для обучающихся – татар школ с русским языком обучения
A177: 175 | B177: Ново-Савиновский район | C177: Муниципальное бюджетное общеобразовательное учреждение "Гимназия №7 имени Героя России А.В.Козина" Ново-Савиновского района г. Казани" | D177: Хисамеева | E177: Э. | F177: И. | G177: 8 | H177: 26 | I177: 2 | J177: 28 | K177: 35 | L177: Призер | M177: Набиуллина ТаслимаГиниятовна | N177: Муниципальное бюджетное общеобразовательное учреждение "Гимназия №7 имени Героя России А.В.Козина" Ново-Савиновского района г. Казани" | O177: Родная (татарская) литература для обучающихся – татар школ с русским языком обучения
A178: 176 | B178: Ново-Савиновский район | C178: Муниципальное бюджетное общеобразовательное учреждение "Гимназия №179 - центр образования" Ново-Савиновского района г.Казани" | D178: Хисматова | E178: А. | F178: И. | G178: 10 | H178: 48 | J178: =I178+H178 -> 48 | K178: 55 | L178: Призер | M178: Габдеева ФаридаРафаэлевна | N178: Муниципальное бюджетное общеобразовательное учреждение "Гимназия №179 - центр образования" Ново-Савиновского района г.Казани" | O178: Родная (татарская) литература для обучающихся – татар школ с русским языком обучения
A179: 177 | B179: Ново-Савиновский район | C179: Муниципальное бюджетное общеобразовательное учреждение "Лицей №177" Ново-Савиновского района г. Казани" | D179: Хузина | E179: А. | F179: З. | G179: 10 | H179: 26 | J179: =I179+H179 -> 26 | K179: 55 | L179: Участник | M179: Исхакова ЛилияШаукатовна | N179: Муниципальное бюджетное общеобразовательное учреждение "Лицей №177" Ново-Савиновского района г. Казани" | O179: Родная (татарская) литература для обучающихся – татар школ с русским языком обучения
A180: 178 | B180: Советский район | C180: Муниципальное бюджетное общеобразовательное учреждение "Средняя общеобразовательная школа №167 с углубленным изучением отдельных предметов" Советского района г. Казани | D180: Хусаенова | E180: А. | F180: Р. | G180: 9 | H180: 39 | J180: =I180+H180 -> 39 | K180: 40 | L180: Призер | M180: Садриева ЭльмираИльмасовна | N180: Муниципальное бюджетное общеобразовательное учреждение "Средняя общеобразовательная школа №167 с углубленным изучением отдельных предметов" Советского района г. Казани | O180: Родная (татарская) литература для обучающихся – татар школ с русским языком обучения
A181: 179 | B181: Приволжский район | C181: Муниципальное бюджетное общеобразовательное учреждение "Лицей №35 - образовательный центр "Галактика" Приволжского района города Казани" | D181: Шайехова | E181: М. | F181: Р. | G181: 10 | H181: 23 | J181: =I181+H181 -> 23 | K181: 55 | L181: Участник | M181: Гилязова ГульнараФаиловна | N181: Муниципальное бюджетное общеобразовательное учреждение "Лицей №35 - образовательный центр "Галактика" Приволжского района города Казани" | O181: Родная (татарская) литература для обучающихся – татар школ с русским языком обучения
A182: 180 | B182: Приволжский район | C182: Муниципальное бюджетное общеобразовательное учреждение "Лицей №83 - Центр образования" | D182: Шаймарданов | E182: Н. | F182: М. | G182: 9 | H182: 19 | J182: =I182+H182 -> 19 | K182: 40 | L182: Участник | M182: Абдуллина АлсуЗуфаровна | N182: Муниципальное бюджетное общеобразовательное учреждение "Лицей №83 - Центр образования" | O182: Родная (татарская) литература для обучающихся – татар школ с русским языком обучения
A183: 182 | B183: Ново-Савиновский район | C183: Государственное автономное общеобразовательное учреждение "Полилингвальный комплекс "Адымнар - путь к знаниям и согласию" г. Казани" | D183: Шайхутдинова | E183: З. | F183: Р. | G183: 8 | H183: 16 | J183: 16 | K183: 35 | L183: Участник | M183: Сафарова АлсуГабдулхаковна | N183: Государственное автономное общеобразовательное учреждение "Полилингвальный комплекс "Адымнар - путь к знаниям и согласию" г. Казани" | O183: Родная (татарская) литература для обучающихся – татар школ с русским языком обучения
A184: 181 | B184: Вахитовский район | C184: Общеобразовательная школа-интернат "Лицей имени Н.И. Лобачевского" федерального государственного автономного образовательного учреждения высшего профессионального образования "Казанский (Приволжский) федеральный университет" | D184: Шайхутдинова | E184: Л. | F184: И. | G184: 8 | H184: 6 | J184: 6 | K184: 35 | L184: Участник | M184: Харисова ГульназФаритовна | N184: Общеобразовательная школа-интернат "Лицей имени Н.И. Лобачевского" федерального государственного автономного образовательного учреждения высшего профессионального образования "Казанский (Приволжский) федеральный университет" | O184: Родная (татарская) литература для обучающихся – татар школ с русским языком обучения
A185: 183 | B185: Ново-Савиновский район | C185: Муниципальное бюджетное общеобразовательное учреждение "Гимназия №179 - центр образования" Ново-Савиновского района г.Казани" | D185: Шамкина | E185: Д. | F185: М. | G185: 9 | H185: 35 | I185: 3 | J185: =I185+H185 -> 38 | K185: 40 | L185: Призер | M185: Ахметзянова АльфияФаруховна | N185: Муниципальное бюджетное общеобразовательное учреждение "Гимназия №179 - центр образования" Ново-Савиновского района г.Казани" | O185: Родная (татарская) литература для обучающихся – татар школ с русским языком обучения
A186: 185 | B186: Приволжский район | C186: Муниципальное бюджетное общеобразовательное учреждение "Гимназия №6" | D186: Шарафиева | E186: Ф. | F186: И. | G186: 9 | H186: 34 | J186: =I186+H186 -> 34 | K186: 40 | L186: Участник | M186: Хуснутдинова ГульзираГилемхановна | N186: Муниципальное бюджетное общеобразовательное учреждение "Гимназия №6" | O186: Родная (татарская) литература для обучающихся – татар школ с русским языком обучения
A187: 184 | B187: Ново-Савиновский район | C187: Муниципальное автономное общеобразовательное учреждение "Лицей №146 "Ресурс" Ново-Савиновского района г. Казани" | D187: Шарафиева | E187: А. | F187: А. | G187: 7 | H187: 21 | J187: =I187+H187 -> 21 | K187: 35 | L187: Участник | M187: Гирфанова ЗилараРафаиловна | N187: Муниципальное автономное общеобразовательное учреждение "Лицей №146 "Ресурс" Ново-Савиновского района г. Казани" | O187: Родная (татарская) литература для обучающихся – татар школ с русским языком обучения
A188: 186 | B188: Ново-Савиновский район | C188: Государственное автономное общеобразовательное учреждение "Полилингвальный комплекс "Адымнар - путь к знаниям и согласию" г. Казани" | D188: Шарипов | E188: И. | F188: И. | G188: 8 | H188: 22 | J188: 22 | K188: 35 | L188: Участник | M188: Хуснутдинова РаиляНуретдиновна | N188: Государственное автономное общеобразовательное учреждение "Полилингвальный комплекс "Адымнар - путь к знаниям и согласию" г. Казани" | O188: Родная (татарская) литература для обучающихся – татар школ с русским языком обучения
A189: 187 | B189: Советский район | C189: Муниципальное бюджетное общеобразовательное учреждение «Средняя общеобразовательная школа с углубленным изучением отдельных предметов №184 им.М.И.Махмутова» | D189: Шарифуллина | E189: Д. | F189: И. | G189: 7 | H189: 24.5 | J189: =I189+H189 -> 24.5 | K189: 35 | L189: Призер | M189: Ахметова ГульнараАхкамовна | N189: Муниципальное бюджетное общеобразовательное учреждение «Средняя общеобразовательная школа с углубленным изучением отдельных предметов №184 им.М.И.Махмутова» | O189: Родная (татарская) литература для обучающихся – татар школ с русским языком обучения
A190: 188 | B190: Советский район | C190: Муниципальное бюджетное общеобразовательное учреждение "Многопрофильная школа №181" Советского района г. Казани" | D190: Шириева | E190: А. | F190: А. | G190: 8 | H190: 6 | J190: 6 | K190: 35 | L190: Участник | M190: Валиуллина АльфинурФакиловна | N190: Муниципальное бюджетное общеобразовательное учреждение "Многопрофильная школа №181" Советского района г. Казани" | O190: Родная (татарская) литература для обучающихся – татар школ с русским языком обучения
A191: 189 | B191: Приволжский район | C191: Муниципальное бюджетное общеобразовательное учреждение "Лицей №83 - Центр образования" | D191: Юнусов | E191: М. | F191: Р. | G191: 7 | H191: 21 | J191: =I191+H191 -> 21 | K191: 35 | L191: Участник | M191: Галиева АлсуИльгизовна | N191: Муниципальное бюджетное общеобразовательное учреждение "Лицей №83 - Центр образования" | O191: Родная (татарская) литература для обучающихся – татар школ с русским языком обучения
A192: 190 | B192: Ново-Савиновский район | C192: Государственное автономное общеобразовательное учреждение "Полилингвальный комплекс "Адымнар - путь к знаниям и согласию" г. Казани" | D192: Юнусова | E192: К. | F192: А. | G192: 8 | H192: 27 | J192: 27 | K192: 35 | L192: Призер | M192: Хуснутдинова РаиляНуретдиновна | N192: Государственное автономное общеобразовательное учреждение "Полилингвальный комплекс "Адымнар - путь к знаниям и согласию" г. Казани" | O192: Родная (татарская) литература для обучающихся – татар школ с русским языком обучения
A193: 191 | B193: Советский район | C193: Муниципальное бюджетное общеобразовательное учреждение "Средняя общеобразовательная русско-татарская школа № 161" Советского района г.Казани" | D193: Якупова | E193: И. | F193: Ф. | G193: 9 | H193: 31 | J193: =I193+H193 -> 31 | K193: 40 | L193: Участник | M193: Хабибуллина КлараАльбертовна | N193: Муниципальное бюджетное общеобразовательное учреждение "Средняя общеобразовательная русско-татарская школа № 161" Советского района г.Казани" | O193: Родная (татарская) литература для обучающихся – татар школ с русским языком обучения
A194: 192 | B194: Приволжский район | C194: Муниципальное бюджетное общеобразовательное учреждение "Лицей №83 - Центр образования" | D194: Яруллин | E194: Р. | F194: Р. | G194: 9 | H194: 20 | J194: =I194+H194 -> 20 | K194: 40 | L194: Участник | M194: Абдуллина АлсуЗуфаровна | N194: Муниципальное бюджетное общеобразовательное учреждение "Лицей №83 - Центр образования" | O194: Родная (татарская) литература для обучающихся – татар школ с русским языком обучения
A195: 193 | B195: Авиастроительный район | C195: Муниципальное бюджетное общеобразовательное учреждение "Гимназия №33" Авиастроительного района г.Казани" | D195: Яруллина Ралина | E195: Р. | F195: Р. | G195: 9 | H195: 35 | J195: =I195+H195 -> 35 | K195: 40 | L195: Участник | M195: Шакирова РасулаГабделвалиевна | N195: Муниципальное бюджетное общеобразовательное учреждение "Гимназия №33" Авиастроительного района г.Казани" | O195: Родная (татарская) литература для обучающихся – татар школ с русским языком обучения
A196: 194 | B196: Приволжский район | C196: Муниципальное бюджетное общеобразовательное учреждение "Татарско-русская средняя общеобразовательная школа №10 с углубленным изучением отдельных предметов" | D196: Ярхамова | E196: Э. | F196: А. | G196: 7 | H196: 28.5 | J196: =I196+H196 -> 28.5 | K196: 35 | L196: Призер | M196: Хадиева ФаридаИльдусовна | N196: Муниципальное бюджетное общеобразовательное учреждение "Татарско-русская средняя общеобразовательная школа №10 с углубленным изучением отдельных предметов" | O196: Родная (татарская) литература для обучающихся – татар школ с русским языком обучения
